Department Family,Entity,Date,Expense Type,Expense Area,Supplier,SME,Transaction Number,Amount,Description,Expenditure Type
Land Registry,Land Registry,21/01/2015,Stationery National Contracts,Birkenhead Office,Banner Business Services Ltd,Large,1045880,"4,351.83",Stationery,Administration
Land Registry,Land Registry,21/01/2015,Stationery National Contracts,Birkenhead Office,Banner Business Services Ltd,Large,1045880,870.35,Stationery,Administration
Land Registry,Land Registry,21/01/2015,Stationery National Contracts,Coventry Office,Banner Business Services Ltd,Large,1045880,"4,745.62",Stationery,Administration
Land Registry,Land Registry,21/01/2015,Stationery National Contracts,Coventry Office,Banner Business Services Ltd,Large,1045880,949.10,Stationery,Administration
Land Registry,Land Registry,21/01/2015,Stationery National Contracts,Croydon Office,Banner Business Services Ltd,Large,1045880,"1,589.00",Stationery,Administration
Land Registry,Land Registry,21/01/2015,Stationery National Contracts,Croydon Office,Banner Business Services Ltd,Large,1045880,314.57,Stationery,Administration
Land Registry,Land Registry,21/01/2015,Stationery National Contracts,Durham Office,Banner Business Services Ltd,Large,1045880,"3,846.70",Stationery,Administration
Land Registry,Land Registry,21/01/2015,Stationery National Contracts,Durham Office,Banner Business Services Ltd,Large,1045880,763.40,Stationery,Administration
Land Registry,Land Registry,21/01/2015,Stationery National Contracts,Gloucester Office,Banner Business Services Ltd,Large,1045880,"2,419.36",Stationery,Administration
Land Registry,Land Registry,21/01/2015,Stationery National Contracts,Gloucester Office,Banner Business Services Ltd,Large,1045880,483.86,Stationery,Administration
Land Registry,Land Registry,21/01/2015,Stationery National Contracts,Hull Office,Banner Business Services Ltd,Large,1045880,"2,623.57",Stationery,Administration
Land Registry,Land Registry,21/01/2015,Stationery National Contracts,Hull Office,Banner Business Services Ltd,Large,1045880,524.73,Stationery,Administration
Land Registry,Land Registry,21/01/2015,Stationery National Contracts,Fylde Office,Banner Business Services Ltd,Large,1045880,"1,293.31",Stationery,Administration
Land Registry,Land Registry,21/01/2015,Stationery National Contracts,Fylde Office,Banner Business Services Ltd,Large,1045880,258.68,Stationery,Administration
Land Registry,Land Registry,21/01/2015,Stationery National Contracts,Leicester Office,Banner Business Services Ltd,Large,1045880,"1,403.15",Stationery,Administration
Land Registry,Land Registry,21/01/2015,Stationery National Contracts,Leicester Office,Banner Business Services Ltd,Large,1045880,276.25,Stationery,Administration
Land Registry,Land Registry,21/01/2015,Stationery National Contracts,Nottingham Office,Banner Business Services Ltd,Large,1045880,"1,973.08",Stationery,Administration
Land Registry,Land Registry,21/01/2015,Stationery National Contracts,Nottingham Office,Banner Business Services Ltd,Large,1045880,394.60,Stationery,Administration
Land Registry,Land Registry,21/01/2015,Stationery National Contracts,Peterborough Office,Banner Business Services Ltd,Large,1045880,"2,600.40",Stationery,Administration
Land Registry,Land Registry,21/01/2015,Stationery National Contracts,Peterborough Office,Banner Business Services Ltd,Large,1045880,520.08,Stationery,Administration
Land Registry,Land Registry,21/01/2015,Stationery National Contracts,Plymouth Office,Banner Business Services Ltd,Large,1045880,"1,335.85",Stationery,Administration
Land Registry,Land Registry,21/01/2015,Stationery National Contracts,Plymouth Office,Banner Business Services Ltd,Large,1045880,267.18,Stationery,Administration
Land Registry,Land Registry,21/01/2015,Stationery National Contracts,Telford Office,Banner Business Services Ltd,Large,1045880,"2,442.08",Stationery,Administration
Land Registry,Land Registry,21/01/2015,Stationery National Contracts,Telford Office,Banner Business Services Ltd,Large,1045880,488.41,Stationery,Administration
Land Registry,Land Registry,21/01/2015,Stationery National Contracts,Wales Office,Banner Business Services Ltd,Large,1045880,"4,883.62",Stationery,Administration
Land Registry,Land Registry,21/01/2015,Stationery National Contracts,Wales Office,Banner Business Services Ltd,Large,1045880,976.74,Stationery,Administration
Land Registry,Land Registry,21/01/2015,Stationery National Contracts,Weymouth Office,Banner Business Services Ltd,Large,1045880,"1,367.19",Stationery,Administration
Land Registry,Land Registry,21/01/2015,Stationery National Contracts,Weymouth Office,Banner Business Services Ltd,Large,1045880,273.42,Stationery,Administration
Land Registry,Land Registry,21/01/2015,Stationery National Contracts,Land Charges,Banner Business Services Ltd,Large,1045880,649.44,Stationery,Administration
Land Registry,Land Registry,21/01/2015,Stationery National Contracts,Land Charges,Banner Business Services Ltd,Large,1045880,129.89,Stationery,Administration
Land Registry,Land Registry,21/01/2015,Stationery National Contracts,HR,Banner Business Services Ltd,Large,1045880,20.77,Stationery,Administration
Land Registry,Land Registry,21/01/2015,Stationery National Contracts,HR,Banner Business Services Ltd,Large,1045880,4.16,Stationery,Administration
Land Registry,Land Registry,21/01/2015,Stationery National Contracts,Finance Group,Banner Business Services Ltd,Large,1045880,149.47,Stationery,Administration
Land Registry,Land Registry,21/01/2015,Stationery National Contracts,Finance Group,Banner Business Services Ltd,Large,1045880,29.88,Stationery,Administration
Land Registry,Land Registry,21/01/2015,Stationery National Contracts,Central Operations Group,Banner Business Services Ltd,Large,1045880,53.99,Stationery,Administration
Land Registry,Land Registry,21/01/2015,Stationery National Contracts,Central Operations Group,Banner Business Services Ltd,Large,1045880,10.80,Stationery,Administration
Land Registry,Land Registry,21/01/2015,Stationery National Contracts,Registration Legal Services Group,Banner Business Services Ltd,Large,1045880,11.69,Stationery,Administration
Land Registry,Land Registry,21/01/2015,Stationery National Contracts,Registration Legal Services Group,Banner Business Services Ltd,Large,1045880,2.34,Stationery,Administration
Land Registry,Land Registry,21/01/2015,Stationery National Contracts,Projects and Programme Centre,Banner Business Services Ltd,Large,1045880,35.05,Stationery,Administration
Land Registry,Land Registry,21/01/2015,Stationery National Contracts,Projects and Programme Centre,Banner Business Services Ltd,Large,1045880,7.02,Stationery,Administration
Land Registry,Land Registry,21/01/2015,Stationery National Contracts,Internal Solutions Group,Banner Business Services Ltd,Large,1045880,358.29,Stationery,Administration
Land Registry,Land Registry,21/01/2015,Stationery National Contracts,Internal Solutions Group,Banner Business Services Ltd,Large,1045880,71.67,Stationery,Administration
Land Registry,Land Registry,21/01/2015,Stationery National Contracts,Governance & Policy,Banner Business Services Ltd,Large,1045880,42.36,Stationery,Administration
Land Registry,Land Registry,21/01/2015,Stationery National Contracts,Governance & Policy,Banner Business Services Ltd,Large,1045880,8.47,Stationery,Administration
Land Registry,Land Registry,21/01/2015,Stationery National Contracts,IS Service Delivery,Banner Business Services Ltd,Large,1045880,"2,385.32",Stationery,Administration
Land Registry,Land Registry,21/01/2015,Stationery National Contracts,IS Service Delivery,Banner Business Services Ltd,Large,1045880,477.07,Stationery,Administration
Land Registry,Land Registry,21/01/2015,Stationery National Contracts,Property Asset Management Group,Banner Business Services Ltd,Large,1045880,36.27,Stationery,Administration
Land Registry,Land Registry,21/01/2015,Stationery National Contracts,Property Asset Management Group,Banner Business Services Ltd,Large,1045880,7.26,Stationery,Administration
Land Registry,Land Registry,21/01/2015,Waste Disposal,Central Facilities Management Team,Banner Business Services Ltd,Large,1045880,"23,550.42",Waste Disposal,Administration
Land Registry,Land Registry,29/01/2015,Fixed Asset Interface Account,Balance Sheet,"BMC Software Distribution, BV",Large,1046863,"26,412.44",Software Licences,Administration
Land Registry,Land Registry,29/01/2015,Fixed Asset Interface Account,Balance Sheet,"BMC Software Distribution, BV",Large,1046863,"5,546.61",Software Licences,Administration
Land Registry,Land Registry,20/01/2015,Electricity,Birkenhead Office,Carillion Services Ltd,Large,1045653,"5,158.02",Electricity,Administration
Land Registry,Land Registry,20/01/2015,Electricity,Coventry Office,Carillion Services Ltd,Large,1045653,"6,957.92",Electricity,Administration
Land Registry,Land Registry,20/01/2015,Electricity,Croydon Office,Carillion Services Ltd,Large,1045653,"6,565.91",Electricity,Administration
Land Registry,Land Registry,20/01/2015,Electricity,Durham Office,Carillion Services Ltd,Large,1045653,"4,429.75",Electricity,Administration
Land Registry,Land Registry,20/01/2015,Electricity,Gloucester Office,Carillion Services Ltd,Large,1045653,"5,302.89",Electricity,Administration
Land Registry,Land Registry,20/01/2015,Electricity,Fylde Office,Carillion Services Ltd,Large,1045653,"4,656.87",Electricity,Administration
Land Registry,Land Registry,20/01/2015,Electricity,Leicester Office,Carillion Services Ltd,Large,1045653,"3,676.52",Electricity,Administration
Land Registry,Land Registry,20/01/2015,Electricity,Nottingham Office,Carillion Services Ltd,Large,1045653,"9,244.36",Electricity,Administration
Land Registry,Land Registry,20/01/2015,Electricity,Telford Office,Carillion Services Ltd,Large,1045653,"6,493.80",Electricity,Administration
Land Registry,Land Registry,20/01/2015,Electricity,Wales Office,Carillion Services Ltd,Large,1045653,"4,933.79",Electricity,Administration
Land Registry,Land Registry,20/01/2015,Electricity,Weymouth Office,Carillion Services Ltd,Large,1045653,"3,533.95",Electricity,Administration
Land Registry,Land Registry,20/01/2015,Electricity,Governance & Policy,Carillion Services Ltd,Large,1045653,"41,869.32",Electricity,Administration
Land Registry,Land Registry,20/01/2015,Electricity,Gloucester Computer Centre,Carillion Services Ltd,Large,1045653,"26,434.07",Electricity,Administration
Land Registry,Land Registry,20/01/2015,Electricity,Dir: HR,Carillion Services Ltd,Large,1045653,"6,624.57",Electricity,Administration
Land Registry,Land Registry,20/01/2015,FF&F:Maintenance,Birkenhead Office,Carillion Services Ltd,Large,1045653,183.40,"Furniture, Fixtures & Fittings Maintenance",Administration
Land Registry,Land Registry,20/01/2015,FF&F:Maintenance,Coventry Office,Carillion Services Ltd,Large,1045653,183.40,"Furniture, Fixtures & Fittings Maintenance",Administration
Land Registry,Land Registry,20/01/2015,FF&F:Maintenance,Croydon Office,Carillion Services Ltd,Large,1045653,183.40,"Furniture, Fixtures & Fittings Maintenance",Administration
Land Registry,Land Registry,20/01/2015,FF&F:Maintenance,Durham Office,Carillion Services Ltd,Large,1045653,183.40,"Furniture, Fixtures & Fittings Maintenance",Administration
Land Registry,Land Registry,20/01/2015,FF&F:Maintenance,Gloucester Office,Carillion Services Ltd,Large,1045653,183.40,"Furniture, Fixtures & Fittings Maintenance",Administration
Land Registry,Land Registry,20/01/2015,FF&F:Maintenance,Hull Office,Carillion Services Ltd,Large,1045653,183.40,"Furniture, Fixtures & Fittings Maintenance",Administration
Land Registry,Land Registry,20/01/2015,FF&F:Maintenance,Fylde Office,Carillion Services Ltd,Large,1045653,183.40,"Furniture, Fixtures & Fittings Maintenance",Administration
Land Registry,Land Registry,20/01/2015,FF&F:Maintenance,Leicester Office,Carillion Services Ltd,Large,1045653,275.10,"Furniture, Fixtures & Fittings Maintenance",Administration
Land Registry,Land Registry,20/01/2015,FF&F:Maintenance,Telford Office,Carillion Services Ltd,Large,1045653,183.40,"Furniture, Fixtures & Fittings Maintenance",Administration
Land Registry,Land Registry,20/01/2015,FF&F:Maintenance,Wales Office,Carillion Services Ltd,Large,1045653,366.80,"Furniture, Fixtures & Fittings Maintenance",Administration
Land Registry,Land Registry,20/01/2015,FF&F:Maintenance,Weymouth Office,Carillion Services Ltd,Large,1045653,183.40,"Furniture, Fixtures & Fittings Maintenance",Administration
Land Registry,Land Registry,20/01/2015,FF&F:Maintenance,Governance & Policy,Carillion Services Ltd,Large,1045653,550.20,"Furniture, Fixtures & Fittings Maintenance",Administration
Land Registry,Land Registry,20/01/2015,FF&F:Maintenance,Gloucester Computer Centre,Carillion Services Ltd,Large,1045653,183.40,"Furniture, Fixtures & Fittings Maintenance",Administration
Land Registry,Land Registry,20/01/2015,"FF&F:Purchases <1,000",Birkenhead Office,Carillion Services Ltd,Large,1045653,696.58,"Furniture, Fixtures & Fittings Purchases Less than 1000",Administration
Land Registry,Land Registry,20/01/2015,"FF&F:Purchases <1,000",Coventry Office,Carillion Services Ltd,Large,1045653,"1,015.14","Furniture, Fixtures & Fittings Purchases Less than 1000",Administration
Land Registry,Land Registry,20/01/2015,"FF&F:Purchases <1,000",Croydon Office,Carillion Services Ltd,Large,1045653,177.33,"Furniture, Fixtures & Fittings Purchases Less than 1000",Administration
Land Registry,Land Registry,20/01/2015,"FF&F:Purchases <1,000",Durham Office,Carillion Services Ltd,Large,1045653,107.21,"Furniture, Fixtures & Fittings Purchases Less than 1000",Administration
Land Registry,Land Registry,20/01/2015,"FF&F:Purchases <1,000",Gloucester Office,Carillion Services Ltd,Large,1045653,"11,940.00","Furniture, Fixtures & Fittings Purchases Less than 1000",Administration
Land Registry,Land Registry,20/01/2015,"FF&F:Purchases <1,000",Hull Office,Carillion Services Ltd,Large,1045653,"1,878.58","Furniture, Fixtures & Fittings Purchases Less than 1000",Administration
Land Registry,Land Registry,20/01/2015,"FF&F:Purchases <1,000",Fylde Office,Carillion Services Ltd,Large,1045653,"1,305.18","Furniture, Fixtures & Fittings Purchases Less than 1000",Administration
Land Registry,Land Registry,20/01/2015,"FF&F:Purchases <1,000",Leicester Office,Carillion Services Ltd,Large,1045653,805.79,"Furniture, Fixtures & Fittings Purchases Less than 1000",Administration
Land Registry,Land Registry,20/01/2015,"FF&F:Purchases <1,000",Nottingham Office,Carillion Services Ltd,Large,1045653,"1,762.29","Furniture, Fixtures & Fittings Purchases Less than 1000",Administration
Land Registry,Land Registry,20/01/2015,"FF&F:Purchases <1,000",Peterborough Office,Carillion Services Ltd,Large,1045653,"1,208.32","Furniture, Fixtures & Fittings Purchases Less than 1000",Administration
Land Registry,Land Registry,20/01/2015,"FF&F:Purchases <1,000",Telford Office,Carillion Services Ltd,Large,1045653,662.42,"Furniture, Fixtures & Fittings Purchases Less than 1000",Administration
Land Registry,Land Registry,20/01/2015,"FF&F:Purchases <1,000",Wales Office,Carillion Services Ltd,Large,1045653,61.67,"Furniture, Fixtures & Fittings Purchases Less than 1000",Administration
Land Registry,Land Registry,20/01/2015,"FF&F:Purchases <1,000",Weymouth Office,Carillion Services Ltd,Large,1045653,"2,598.06","Furniture, Fixtures & Fittings Purchases Less than 1000",Administration
Land Registry,Land Registry,20/01/2015,"FF&F:Purchases <1,000",Governance & Policy,Carillion Services Ltd,Large,1045653,"4,166.36","Furniture, Fixtures & Fittings Purchases Less than 1000",Administration
Land Registry,Land Registry,20/01/2015,FM Ext Helpdesk,Birkenhead Office,Carillion Services Ltd,Large,1045653,395.48,Facilities External Helpdesk,Administration
Land Registry,Land Registry,20/01/2015,FM Ext Helpdesk,Coventry Office,Carillion Services Ltd,Large,1045653,802.47,Facilities External Helpdesk,Administration
Land Registry,Land Registry,20/01/2015,FM Ext Helpdesk,Croydon Office,Carillion Services Ltd,Large,1045653,476.04,Facilities External Helpdesk,Administration
Land Registry,Land Registry,20/01/2015,FM Ext Helpdesk,Durham Office,Carillion Services Ltd,Large,1045653,496.35,Facilities External Helpdesk,Administration
Land Registry,Land Registry,20/01/2015,FM Ext Helpdesk,Gloucester Office,Carillion Services Ltd,Large,1045653,497.13,Facilities External Helpdesk,Administration
Land Registry,Land Registry,20/01/2015,FM Ext Helpdesk,Hull Office,Carillion Services Ltd,Large,1045653,387.91,Facilities External Helpdesk,Administration
Land Registry,Land Registry,20/01/2015,FM Ext Helpdesk,Fylde Office,Carillion Services Ltd,Large,1045653,345.18,Facilities External Helpdesk,Administration
Land Registry,Land Registry,20/01/2015,FM Ext Helpdesk,Leicester Office,Carillion Services Ltd,Large,1045653,434.21,Facilities External Helpdesk,Administration
Land Registry,Land Registry,20/01/2015,FM Ext Helpdesk,Nottingham Office,Carillion Services Ltd,Large,1045653,"1,533.81",Facilities External Helpdesk,Administration
Land Registry,Land Registry,20/01/2015,FM Ext Helpdesk,Peterborough Office,Carillion Services Ltd,Large,1045653,506.60,Facilities External Helpdesk,Administration
Land Registry,Land Registry,20/01/2015,FM Ext Helpdesk,Telford Office,Carillion Services Ltd,Large,1045653,419.68,Facilities External Helpdesk,Administration
Land Registry,Land Registry,20/01/2015,FM Ext Helpdesk,Wales Office,Carillion Services Ltd,Large,1045653,375.84,Facilities External Helpdesk,Administration
Land Registry,Land Registry,20/01/2015,FM Ext Helpdesk,Weymouth Office,Carillion Services Ltd,Large,1045653,305.53,Facilities External Helpdesk,Administration
Land Registry,Land Registry,20/01/2015,FM Ext Helpdesk,Governance & Policy,Carillion Services Ltd,Large,1045653,"1,379.39",Facilities External Helpdesk,Administration
Land Registry,Land Registry,20/01/2015,FM Ext Helpdesk,Gloucester Computer Centre,Carillion Services Ltd,Large,1045653,461.19,Facilities External Helpdesk,Administration
Land Registry,Land Registry,20/01/2015,FM Ext Helpdesk,RFS1 - Telford,Carillion Services Ltd,Large,1045653,104.54,Facilities External Helpdesk,Administration
Land Registry,Land Registry,20/01/2015,FM Ext Helpdesk,RFS4 - Coventry,Carillion Services Ltd,Large,1045653,7.13,Facilities External Helpdesk,Administration
Land Registry,Land Registry,20/01/2015,FM Managed Services,Birkenhead Office,Carillion Services Ltd,Large,1045653,"4,867.01",Facilities Managed Services,Administration
Land Registry,Land Registry,20/01/2015,FM Managed Services,Coventry Office,Carillion Services Ltd,Large,1045653,"7,978.75",Facilities Managed Services,Administration
Land Registry,Land Registry,20/01/2015,FM Managed Services,Croydon Office,Carillion Services Ltd,Large,1045653,"8,165.84",Facilities Managed Services,Administration
Land Registry,Land Registry,20/01/2015,FM Managed Services,Durham Office,Carillion Services Ltd,Large,1045653,"7,752.60",Facilities Managed Services,Administration
Land Registry,Land Registry,20/01/2015,FM Managed Services,Gloucester Office,Carillion Services Ltd,Large,1045653,"4,242.07",Facilities Managed Services,Administration
Land Registry,Land Registry,20/01/2015,FM Managed Services,Hull Office,Carillion Services Ltd,Large,1045653,"4,265.00",Facilities Managed Services,Administration
Land Registry,Land Registry,20/01/2015,FM Managed Services,Fylde Office,Carillion Services Ltd,Large,1045653,"6,989.17",Facilities Managed Services,Administration
Land Registry,Land Registry,20/01/2015,FM Managed Services,Leicester Office,Carillion Services Ltd,Large,1045653,"3,784.47",Facilities Managed Services,Administration
Land Registry,Land Registry,20/01/2015,FM Managed Services,Nottingham Office,Carillion Services Ltd,Large,1045653,"13,804.97",Facilities Managed Services,Administration
Land Registry,Land Registry,20/01/2015,FM Managed Services,Peterborough Office,Carillion Services Ltd,Large,1045653,"4,478.52",Facilities Managed Services,Administration
Land Registry,Land Registry,20/01/2015,FM Managed Services,Telford Office,Carillion Services Ltd,Large,1045653,"3,740.65",Facilities Managed Services,Administration
Land Registry,Land Registry,20/01/2015,FM Managed Services,Wales Office,Carillion Services Ltd,Large,1045653,"7,641.35",Facilities Managed Services,Administration
Land Registry,Land Registry,20/01/2015,FM Managed Services,Weymouth Office,Carillion Services Ltd,Large,1045653,"3,997.19",Facilities Managed Services,Administration
Land Registry,Land Registry,20/01/2015,FM Managed Services,Governance & Policy,Carillion Services Ltd,Large,1045653,"11,941.56",Facilities Managed Services,Administration
Land Registry,Land Registry,20/01/2015,FM Managed Services,Gloucester Computer Centre,Carillion Services Ltd,Large,1045653,"1,897.81",Facilities Managed Services,Administration
Land Registry,Land Registry,20/01/2015,FM Managed Services,RFS1 - Telford,Carillion Services Ltd,Large,1045653,350.31,Facilities Managed Services,Administration
Land Registry,Land Registry,20/01/2015,FM Managed Services,RFS4 - Coventry,Carillion Services Ltd,Large,1045653,13.74,Facilities Managed Services,Administration
Land Registry,Land Registry,20/01/2015,Gas,Birkenhead Office,Carillion Services Ltd,Large,1045653,"1,598.27",Gas,Administration
Land Registry,Land Registry,20/01/2015,Gas,Coventry Office,Carillion Services Ltd,Large,1045653,"4,206.46",Gas,Administration
Land Registry,Land Registry,20/01/2015,Gas,Croydon Office,Carillion Services Ltd,Large,1045653,"2,565.88",Gas,Administration
Land Registry,Land Registry,20/01/2015,Gas,Durham Office,Carillion Services Ltd,Large,1045653,"1,494.60",Gas,Administration
Land Registry,Land Registry,20/01/2015,Gas,Gloucester Office,Carillion Services Ltd,Large,1045653,"1,954.07",Gas,Administration
Land Registry,Land Registry,20/01/2015,Gas,Hull Office,Carillion Services Ltd,Large,1045653,240.73,Gas,Administration
Land Registry,Land Registry,20/01/2015,Gas,Fylde Office,Carillion Services Ltd,Large,1045653,"1,667.36",Gas,Administration
Land Registry,Land Registry,20/01/2015,Gas,Leicester Office,Carillion Services Ltd,Large,1045653,"2,115.88",Gas,Administration
Land Registry,Land Registry,20/01/2015,Gas,Nottingham Office,Carillion Services Ltd,Large,1045653,"7,394.05",Gas,Administration
Land Registry,Land Registry,20/01/2015,Gas,Telford Office,Carillion Services Ltd,Large,1045653,"3,200.96",Gas,Administration
Land Registry,Land Registry,20/01/2015,Gas,Wales Office,Carillion Services Ltd,Large,1045653,984.18,Gas,Administration
Land Registry,Land Registry,20/01/2015,Gas,Weymouth Office,Carillion Services Ltd,Large,1045653,"1,383.25",Gas,Administration
Land Registry,Land Registry,20/01/2015,Gas,Governance & Policy,Carillion Services Ltd,Large,1045653,"3,049.36",Gas,Administration
Land Registry,Land Registry,20/01/2015,Gas,Gloucester Computer Centre,Carillion Services Ltd,Large,1045653,536.11,Gas,Administration
Land Registry,Land Registry,20/01/2015,Gas,Dir: HR,Carillion Services Ltd,Large,1045653,"3,801.42",Gas,Administration
Land Registry,Land Registry,20/01/2015,Gas,Dir: HR,Carillion Services Ltd,Large,1045653,273.13,Gas,Administration
Land Registry,Land Registry,20/01/2015,Grounds Maintenance,Birkenhead Office,Carillion Services Ltd,Large,1045653,387.72,Grounds Maintenance,Administration
Land Registry,Land Registry,20/01/2015,Grounds Maintenance,Coventry Office,Carillion Services Ltd,Large,1045653,792.29,Grounds Maintenance,Administration
Land Registry,Land Registry,20/01/2015,Grounds Maintenance,Croydon Office,Carillion Services Ltd,Large,1045653,81.34,Grounds Maintenance,Administration
Land Registry,Land Registry,20/01/2015,Grounds Maintenance,Durham Office,Carillion Services Ltd,Large,1045653,958.01,Grounds Maintenance,Administration
Land Registry,Land Registry,20/01/2015,Grounds Maintenance,Gloucester Office,Carillion Services Ltd,Large,1045653,675.73,Grounds Maintenance,Administration
Land Registry,Land Registry,20/01/2015,Grounds Maintenance,Hull Office,Carillion Services Ltd,Large,1045653,668.85,Grounds Maintenance,Administration
Land Registry,Land Registry,20/01/2015,Grounds Maintenance,Fylde Office,Carillion Services Ltd,Large,1045653,"1,382.69",Grounds Maintenance,Administration
Land Registry,Land Registry,20/01/2015,Grounds Maintenance,Leicester Office,Carillion Services Ltd,Large,1045653,237.96,Grounds Maintenance,Administration
Land Registry,Land Registry,20/01/2015,Grounds Maintenance,Nottingham Office,Carillion Services Ltd,Large,1045653,95.09,Grounds Maintenance,Administration
Land Registry,Land Registry,20/01/2015,Grounds Maintenance,Telford Office,Carillion Services Ltd,Large,1045653,"1,248.67",Grounds Maintenance,Administration
Land Registry,Land Registry,20/01/2015,Grounds Maintenance,Wales Office,Carillion Services Ltd,Large,1045653,533.60,Grounds Maintenance,Administration
Land Registry,Land Registry,20/01/2015,Grounds Maintenance,Weymouth Office,Carillion Services Ltd,Large,1045653,643.10,Grounds Maintenance,Administration
Land Registry,Land Registry,20/01/2015,Grounds Maintenance,Governance & Policy,Carillion Services Ltd,Large,1045653,"1,943.17",Grounds Maintenance,Administration
Land Registry,Land Registry,20/01/2015,Grounds Maintenance,Gloucester Computer Centre,Carillion Services Ltd,Large,1045653,158.00,Grounds Maintenance,Administration
Land Registry,Land Registry,20/01/2015,Grounds Maintenance,Coventry Office,Carillion Services Ltd,Large,1045653,572.24,Grounds Maintenance,Administration
Land Registry,Land Registry,20/01/2015,Document Exchange (DX),Birkenhead Office,Carillion Services Ltd,Large,1045653,"1,025.17",Document Exchange (DX) Postage,Administration
Land Registry,Land Registry,20/01/2015,Office Cleaning Expenses,Birkenhead Office,Carillion Services Ltd,Large,1045653,"5,993.53",Office Cleaning Expenses,Administration
Land Registry,Land Registry,20/01/2015,Office Cleaning Expenses,Coventry Office,Carillion Services Ltd,Large,1045653,"7,863.09",Office Cleaning Expenses,Administration
Land Registry,Land Registry,20/01/2015,Office Cleaning Expenses,Croydon Office,Carillion Services Ltd,Large,1045653,"6,286.91",Office Cleaning Expenses,Administration
Land Registry,Land Registry,20/01/2015,Office Cleaning Expenses,Durham Office,Carillion Services Ltd,Large,1045653,"8,888.69",Office Cleaning Expenses,Administration
Land Registry,Land Registry,20/01/2015,Office Cleaning Expenses,Gloucester Office,Carillion Services Ltd,Large,1045653,"6,930.20",Office Cleaning Expenses,Administration
Land Registry,Land Registry,20/01/2015,Office Cleaning Expenses,Hull Office,Carillion Services Ltd,Large,1045653,"5,373.56",Office Cleaning Expenses,Administration
Land Registry,Land Registry,20/01/2015,Office Cleaning Expenses,Fylde Office,Carillion Services Ltd,Large,1045653,"5,498.14",Office Cleaning Expenses,Administration
Land Registry,Land Registry,20/01/2015,Office Cleaning Expenses,Leicester Office,Carillion Services Ltd,Large,1045653,"3,975.62",Office Cleaning Expenses,Administration
Land Registry,Land Registry,20/01/2015,Office Cleaning Expenses,Nottingham Office,Carillion Services Ltd,Large,1045653,"7,063.94",Office Cleaning Expenses,Administration
Land Registry,Land Registry,20/01/2015,Office Cleaning Expenses,Peterborough Office,Carillion Services Ltd,Large,1045653,"3,168.54",Office Cleaning Expenses,Administration
Land Registry,Land Registry,20/01/2015,Office Cleaning Expenses,Telford Office,Carillion Services Ltd,Large,1045653,"6,949.00",Office Cleaning Expenses,Administration
Land Registry,Land Registry,20/01/2015,Office Cleaning Expenses,Wales Office,Carillion Services Ltd,Large,1045653,"5,050.21",Office Cleaning Expenses,Administration
Land Registry,Land Registry,20/01/2015,Office Cleaning Expenses,Weymouth Office,Carillion Services Ltd,Large,1045653,"3,926.88",Office Cleaning Expenses,Administration
Land Registry,Land Registry,20/01/2015,Office Cleaning Expenses,Governance & Policy,Carillion Services Ltd,Large,1045653,"9,254.34",Office Cleaning Expenses,Administration
Land Registry,Land Registry,20/01/2015,Office Cleaning Expenses,Gloucester Computer Centre,Carillion Services Ltd,Large,1045653,10.70,Office Cleaning Expenses,Administration
Land Registry,Land Registry,20/01/2015,Office Cleaning Expenses,RFS4 - Coventry,Carillion Services Ltd,Large,1045653,248.93,Office Cleaning Expenses,Administration
Land Registry,Land Registry,20/01/2015,Office Cleaning Expenses,RFS8 - Birkenhead,Carillion Services Ltd,Large,1045653,7.56,Office Cleaning Expenses,Administration
Land Registry,Land Registry,20/01/2015,Pest Control,Birkenhead Office,Carillion Services Ltd,Large,1045653,41.96,Pest Control,Administration
Land Registry,Land Registry,20/01/2015,Pest Control,Coventry Office,Carillion Services Ltd,Large,1045653,53.48,Pest Control,Administration
Land Registry,Land Registry,20/01/2015,Pest Control,Croydon Office,Carillion Services Ltd,Large,1045653,40.29,Pest Control,Administration
Land Registry,Land Registry,20/01/2015,Pest Control,Durham Office,Carillion Services Ltd,Large,1045653,49.08,Pest Control,Administration
Land Registry,Land Registry,20/01/2015,Pest Control,Gloucester Office,Carillion Services Ltd,Large,1045653,46.80,Pest Control,Administration
Land Registry,Land Registry,20/01/2015,Pest Control,Hull Office,Carillion Services Ltd,Large,1045653,50.14,Pest Control,Administration
Land Registry,Land Registry,20/01/2015,Pest Control,Fylde Office,Carillion Services Ltd,Large,1045653,39.67,Pest Control,Administration
Land Registry,Land Registry,20/01/2015,Pest Control,Leicester Office,Carillion Services Ltd,Large,1045653,55.94,Pest Control,Administration
Land Registry,Land Registry,20/01/2015,Pest Control,Nottingham Office,Carillion Services Ltd,Large,1045653,139.63,Pest Control,Administration
Land Registry,Land Registry,20/01/2015,Pest Control,Peterborough Office,Carillion Services Ltd,Large,1045653,42.52,Pest Control,Administration
Land Registry,Land Registry,20/01/2015,Pest Control,Telford Office,Carillion Services Ltd,Large,1045653,45.04,Pest Control,Administration
Land Registry,Land Registry,20/01/2015,Pest Control,Wales Office,Carillion Services Ltd,Large,1045653,59.46,Pest Control,Administration
Land Registry,Land Registry,20/01/2015,Pest Control,Weymouth Office,Carillion Services Ltd,Large,1045653,41.96,Pest Control,Administration
Land Registry,Land Registry,20/01/2015,Pest Control,Governance & Policy,Carillion Services Ltd,Large,1045653,525.66,Pest Control,Administration
Land Registry,Land Registry,20/01/2015,Pest Control,Gloucester Computer Centre,Carillion Services Ltd,Large,1045653,28.68,Pest Control,Administration
Land Registry,Land Registry,20/01/2015,Pest Control,Fylde Office,Carillion Services Ltd,Large,1045653,"8,307.00",Pest Control,Administration
Land Registry,Land Registry,20/01/2015,Pest Control,Telford Office,Carillion Services Ltd,Large,1045653,160.50,Pest Control,Administration
Land Registry,Land Registry,20/01/2015,Property Maintenance,Birkenhead Office,Carillion Services Ltd,Large,1045653,"5,047.33",Property Maintenance,Administration
Land Registry,Land Registry,20/01/2015,Property Maintenance,Coventry Office,Carillion Services Ltd,Large,1045653,"10,970.66",Property Maintenance,Administration
Land Registry,Land Registry,20/01/2015,Property Maintenance,Croydon Office,Carillion Services Ltd,Large,1045653,"7,338.09",Property Maintenance,Administration
Land Registry,Land Registry,20/01/2015,Property Maintenance,Durham Office,Carillion Services Ltd,Large,1045653,"5,889.50",Property Maintenance,Administration
Land Registry,Land Registry,20/01/2015,Property Maintenance,Gloucester Office,Carillion Services Ltd,Large,1045653,"3,382.56",Property Maintenance,Administration
Land Registry,Land Registry,20/01/2015,Property Maintenance,Hull Office,Carillion Services Ltd,Large,1045653,"6,017.91",Property Maintenance,Administration
Land Registry,Land Registry,20/01/2015,Property Maintenance,Fylde Office,Carillion Services Ltd,Large,1045653,"3,829.84",Property Maintenance,Administration
Land Registry,Land Registry,20/01/2015,Property Maintenance,Leicester Office,Carillion Services Ltd,Large,1045653,"8,493.18",Property Maintenance,Administration
Land Registry,Land Registry,20/01/2015,Property Maintenance,Nottingham Office,Carillion Services Ltd,Large,1045653,"5,647.00",Property Maintenance,Administration
Land Registry,Land Registry,20/01/2015,Property Maintenance,Peterborough Office,Carillion Services Ltd,Large,1045653,"3,232.10",Property Maintenance,Administration
Land Registry,Land Registry,20/01/2015,Property Maintenance,Telford Office,Carillion Services Ltd,Large,1045653,"5,824.72",Property Maintenance,Administration
Land Registry,Land Registry,20/01/2015,Property Maintenance,Wales Office,Carillion Services Ltd,Large,1045653,"5,050.13",Property Maintenance,Administration
Land Registry,Land Registry,20/01/2015,Property Maintenance,Weymouth Office,Carillion Services Ltd,Large,1045653,"2,669.88",Property Maintenance,Administration
Land Registry,Land Registry,20/01/2015,Property Maintenance,Governance & Policy,Carillion Services Ltd,Large,1045653,"16,142.16",Property Maintenance,Administration
Land Registry,Land Registry,20/01/2015,Property Maintenance,Gloucester Computer Centre,Carillion Services Ltd,Large,1045653,"7,032.96",Property Maintenance,Administration
Land Registry,Land Registry,20/01/2015,Property Maintenance,RFS1 - Telford,Carillion Services Ltd,Large,1045653,"1,706.94",Property Maintenance,Administration
Land Registry,Land Registry,20/01/2015,Property Maintenance,RFS4 - Coventry,Carillion Services Ltd,Large,1045653,55.57,Property Maintenance,Administration
Land Registry,Land Registry,20/01/2015,Property Maintenance,RFS5 - Durham Belmont,Carillion Services Ltd,Large,1045653,"5,218.15",Property Maintenance,Administration
Land Registry,Land Registry,20/01/2015,Property Maintenance,RFS15 - Plymouth Drakes Hill Court,Carillion Services Ltd,Large,1045653,-25.75,Property Maintenance,Administration
Land Registry,Land Registry,20/01/2015,Property Maintenance,Dir: HR,Carillion Services Ltd,Large,1045653,7.06,Property Maintenance,Administration
Land Registry,Land Registry,20/01/2015,Property Maintenance,Birkenhead Office,Carillion Services Ltd,Large,1045653,"35,332.63",Property Maintenance,Administration
Land Registry,Land Registry,20/01/2015,Property Maintenance,Coventry Office,Carillion Services Ltd,Large,1045653,"7,714.70",Property Maintenance,Administration
Land Registry,Land Registry,20/01/2015,Property Maintenance,Croydon Office,Carillion Services Ltd,Large,1045653,"20,205.40",Property Maintenance,Administration
Land Registry,Land Registry,20/01/2015,Property Maintenance,Durham Office,Carillion Services Ltd,Large,1045653,"6,163.75",Property Maintenance,Administration
Land Registry,Land Registry,20/01/2015,Property Maintenance,Gloucester Office,Carillion Services Ltd,Large,1045653,"3,597.66",Property Maintenance,Administration
Land Registry,Land Registry,20/01/2015,Property Maintenance,Hull Office,Carillion Services Ltd,Large,1045653,"22,330.58",Property Maintenance,Administration
Land Registry,Land Registry,20/01/2015,Property Maintenance,Fylde Office,Carillion Services Ltd,Large,1045653,"30,805.60",Property Maintenance,Administration
Land Registry,Land Registry,20/01/2015,Property Maintenance,Leicester Office,Carillion Services Ltd,Large,1045653,"4,433.61",Property Maintenance,Administration
Land Registry,Land Registry,20/01/2015,Property Maintenance,Nottingham Office,Carillion Services Ltd,Large,1045653,"8,941.46",Property Maintenance,Administration
Land Registry,Land Registry,20/01/2015,Property Maintenance,Telford Office,Carillion Services Ltd,Large,1045653,"7,318.80",Property Maintenance,Administration
Land Registry,Land Registry,20/01/2015,Property Maintenance,Wales Office,Carillion Services Ltd,Large,1045653,"19,032.38",Property Maintenance,Administration
Land Registry,Land Registry,20/01/2015,Property Maintenance,Weymouth Office,Carillion Services Ltd,Large,1045653,"11,436.29",Property Maintenance,Administration
Land Registry,Land Registry,20/01/2015,Property Maintenance,Governance & Policy,Carillion Services Ltd,Large,1045653,"3,706.54",Property Maintenance,Administration
Land Registry,Land Registry,20/01/2015,Property Maintenance,Gloucester Computer Centre,Carillion Services Ltd,Large,1045653,599.63,Property Maintenance,Administration
Land Registry,Land Registry,20/01/2015,Property Management; Other Fees,Dir: HR,Carillion Services Ltd,Large,1045653,"1,537.84",Property Management; Other Fees,Administration
Land Registry,Land Registry,20/01/2015,Security Expenses,Birkenhead Office,Carillion Services Ltd,Large,1045653,"3,271.14",Security Expenses,Administration
Land Registry,Land Registry,20/01/2015,Security Expenses,Coventry Office,Carillion Services Ltd,Large,1045653,"7,978.48",Security Expenses,Administration
Land Registry,Land Registry,20/01/2015,Security Expenses,Croydon Office,Carillion Services Ltd,Large,1045653,"9,426.87",Security Expenses,Administration
Land Registry,Land Registry,20/01/2015,Security Expenses,Durham Office,Carillion Services Ltd,Large,1045653,"3,486.36",Security Expenses,Administration
Land Registry,Land Registry,20/01/2015,Security Expenses,Gloucester Office,Carillion Services Ltd,Large,1045653,"10,580.64",Security Expenses,Administration
Land Registry,Land Registry,20/01/2015,Security Expenses,Hull Office,Carillion Services Ltd,Large,1045653,"3,253.48",Security Expenses,Administration
Land Registry,Land Registry,20/01/2015,Security Expenses,Fylde Office,Carillion Services Ltd,Large,1045653,"2,621.81",Security Expenses,Administration
Land Registry,Land Registry,20/01/2015,Security Expenses,Leicester Office,Carillion Services Ltd,Large,1045653,"2,758.12",Security Expenses,Administration
Land Registry,Land Registry,20/01/2015,Security Expenses,Nottingham Office,Carillion Services Ltd,Large,1045653,"3,438.67",Security Expenses,Administration
Land Registry,Land Registry,20/01/2015,Security Expenses,Peterborough Office,Carillion Services Ltd,Large,1045653,15.87,Security Expenses,Administration
Land Registry,Land Registry,20/01/2015,Security Expenses,Telford Office,Carillion Services Ltd,Large,1045653,"2,864.56",Security Expenses,Administration
Land Registry,Land Registry,20/01/2015,Security Expenses,Wales Office,Carillion Services Ltd,Large,1045653,"2,923.53",Security Expenses,Administration
Land Registry,Land Registry,20/01/2015,Security Expenses,Weymouth Office,Carillion Services Ltd,Large,1045653,"3,148.19",Security Expenses,Administration
Land Registry,Land Registry,20/01/2015,Security Expenses,Governance & Policy,Carillion Services Ltd,Large,1045653,"21,663.47",Security Expenses,Administration
Land Registry,Land Registry,20/01/2015,Security Expenses,Gloucester Computer Centre,Carillion Services Ltd,Large,1045653,"8,318.97",Security Expenses,Administration
Land Registry,Land Registry,20/01/2015,Security Expenses,Dir: HR,Carillion Services Ltd,Large,1045653,940.96,Security Expenses,Administration
Land Registry,Land Registry,20/01/2015,Security Expenses,Birkenhead Office,Carillion Services Ltd,Large,1045653,"3,081.60",Security Expenses,Administration
Land Registry,Land Registry,20/01/2015,Security Expenses,Croydon Office,Carillion Services Ltd,Large,1045653,109.89,Security Expenses,Administration
Land Registry,Land Registry,20/01/2015,Security Expenses,Durham Office,Carillion Services Ltd,Large,1045653,427.84,Security Expenses,Administration
Land Registry,Land Registry,20/01/2015,Security Expenses,Gloucester Office,Carillion Services Ltd,Large,1045653,"10,247.86",Security Expenses,Administration
Land Registry,Land Registry,20/01/2015,Security Expenses,Hull Office,Carillion Services Ltd,Large,1045653,308.08,Security Expenses,Administration
Land Registry,Land Registry,20/01/2015,Security Expenses,Fylde Office,Carillion Services Ltd,Large,1045653,242.84,Security Expenses,Administration
Land Registry,Land Registry,20/01/2015,Security Expenses,Leicester Office,Carillion Services Ltd,Large,1045653,79.00,Security Expenses,Administration
Land Registry,Land Registry,20/01/2015,Security Expenses,Nottingham Office,Carillion Services Ltd,Large,1045653,"11,008.46",Security Expenses,Administration
Land Registry,Land Registry,20/01/2015,Security Expenses,Telford Office,Carillion Services Ltd,Large,1045653,449.06,Security Expenses,Administration
Land Registry,Land Registry,20/01/2015,Security Expenses,Governance & Policy,Carillion Services Ltd,Large,1045653,762.35,Security Expenses,Administration
Land Registry,Land Registry,20/01/2015,Security Expenses,RFS4 - Coventry,Carillion Services Ltd,Large,1045653,"8,225.11",Security Expenses,Administration
Land Registry,Land Registry,20/01/2015,Security Expenses,Dir: HR,Carillion Services Ltd,Large,1045653,83.55,Security Expenses,Administration
Land Registry,Land Registry,20/01/2015,Vending Machine Consumables & Repairs,Birkenhead Office,Carillion Services Ltd,Large,1045653,767.29,Vending Machine Consumables & Repairs,Administration
Land Registry,Land Registry,20/01/2015,Vending Machine Consumables & Repairs,Coventry Office,Carillion Services Ltd,Large,1045653,223.40,Vending Machine Consumables & Repairs,Administration
Land Registry,Land Registry,20/01/2015,Vending Machine Consumables & Repairs,Croydon Office,Carillion Services Ltd,Large,1045653,190.25,Vending Machine Consumables & Repairs,Administration
Land Registry,Land Registry,20/01/2015,Vending Machine Consumables & Repairs,Gloucester Office,Carillion Services Ltd,Large,1045653,734.05,Vending Machine Consumables & Repairs,Administration
Land Registry,Land Registry,20/01/2015,Vending Machine Consumables & Repairs,Hull Office,Carillion Services Ltd,Large,1045653,364.51,Vending Machine Consumables & Repairs,Administration
Land Registry,Land Registry,20/01/2015,Vending Machine Consumables & Repairs,Fylde Office,Carillion Services Ltd,Large,1045653,220.05,Vending Machine Consumables & Repairs,Administration
Land Registry,Land Registry,20/01/2015,Vending Machine Consumables & Repairs,Leicester Office,Carillion Services Ltd,Large,1045653,181.15,Vending Machine Consumables & Repairs,Administration
Land Registry,Land Registry,20/01/2015,Vending Machine Consumables & Repairs,Nottingham Office,Carillion Services Ltd,Large,1045653,136.00,Vending Machine Consumables & Repairs,Administration
Land Registry,Land Registry,20/01/2015,Vending Machine Consumables & Repairs,Peterborough Office,Carillion Services Ltd,Large,1045653,148.69,Vending Machine Consumables & Repairs,Administration
Land Registry,Land Registry,20/01/2015,Vending Machine Consumables & Repairs,Telford Office,Carillion Services Ltd,Large,1045653,286.79,Vending Machine Consumables & Repairs,Administration
Land Registry,Land Registry,20/01/2015,Vending Machine Consumables & Repairs,Wales Office,Carillion Services Ltd,Large,1045653,202.56,Vending Machine Consumables & Repairs,Administration
Land Registry,Land Registry,20/01/2015,Vending Machine Consumables & Repairs,Weymouth Office,Carillion Services Ltd,Large,1045653,120.82,Vending Machine Consumables & Repairs,Administration
Land Registry,Land Registry,20/01/2015,Vending Machine Consumables & Repairs,Governance & Policy,Carillion Services Ltd,Large,1045653,20.95,Vending Machine Consumables & Repairs,Administration
Land Registry,Land Registry,20/01/2015,Vending Machine Consumables & Repairs,Gloucester Computer Centre,Carillion Services Ltd,Large,1045653,19.43,Vending Machine Consumables & Repairs,Administration
Land Registry,Land Registry,20/01/2015,Vending Machine Consumables & Repairs,RFS8 - Birkenhead,Carillion Services Ltd,Large,1045653,54.95,Vending Machine Consumables & Repairs,Administration
Land Registry,Land Registry,20/01/2015,Waste Disposal,Birkenhead Office,Carillion Services Ltd,Large,1045653,435.31,Waste Disposal,Administration
Land Registry,Land Registry,20/01/2015,Waste Disposal,Coventry Office,Carillion Services Ltd,Large,1045653,240.79,Waste Disposal,Administration
Land Registry,Land Registry,20/01/2015,Waste Disposal,Croydon Office,Carillion Services Ltd,Large,1045653,167.92,Waste Disposal,Administration
Land Registry,Land Registry,20/01/2015,Waste Disposal,Durham Office,Carillion Services Ltd,Large,1045653,252.65,Waste Disposal,Administration
Land Registry,Land Registry,20/01/2015,Waste Disposal,Gloucester Office,Carillion Services Ltd,Large,1045653,160.89,Waste Disposal,Administration
Land Registry,Land Registry,20/01/2015,Waste Disposal,Hull Office,Carillion Services Ltd,Large,1045653,96.14,Waste Disposal,Administration
Land Registry,Land Registry,20/01/2015,Waste Disposal,Fylde Office,Carillion Services Ltd,Large,1045653,76.61,Waste Disposal,Administration
Land Registry,Land Registry,20/01/2015,Waste Disposal,Leicester Office,Carillion Services Ltd,Large,1045653,229.21,Waste Disposal,Administration
Land Registry,Land Registry,20/01/2015,Waste Disposal,Nottingham Office,Carillion Services Ltd,Large,1045653,216.34,Waste Disposal,Administration
Land Registry,Land Registry,20/01/2015,Waste Disposal,Telford Office,Carillion Services Ltd,Large,1045653,279.90,Waste Disposal,Administration
Land Registry,Land Registry,20/01/2015,Waste Disposal,Wales Office,Carillion Services Ltd,Large,1045653,358.82,Waste Disposal,Administration
Land Registry,Land Registry,20/01/2015,Waste Disposal,Weymouth Office,Carillion Services Ltd,Large,1045653,152.88,Waste Disposal,Administration
Land Registry,Land Registry,20/01/2015,Waste Disposal,Governance & Policy,Carillion Services Ltd,Large,1045653,"1,448.86",Waste Disposal,Administration
Land Registry,Land Registry,20/01/2015,Waste Disposal,Gloucester Computer Centre,Carillion Services Ltd,Large,1045653,64.06,Waste Disposal,Administration
Land Registry,Land Registry,20/01/2015,Waste Disposal,RFS1 - Telford,Carillion Services Ltd,Large,1045653,-87.56,Waste Disposal,Administration
Land Registry,Land Registry,20/01/2015,Waste Disposal,Dir: HR,Carillion Services Ltd,Large,1045653,41.76,Waste Disposal,Administration
Land Registry,Land Registry,20/01/2015,Waste Disposal,Birkenhead Office,Carillion Services Ltd,Large,1045653,570.02,Waste Disposal,Administration
Land Registry,Land Registry,20/01/2015,Waste Disposal,Durham Office,Carillion Services Ltd,Large,1045653,703.17,Waste Disposal,Administration
Land Registry,Land Registry,20/01/2015,Waste Disposal,Gloucester Office,Carillion Services Ltd,Large,1045653,110.06,Waste Disposal,Administration
Land Registry,Land Registry,20/01/2015,Waste Disposal,Hull Office,Carillion Services Ltd,Large,1045653,25.94,Waste Disposal,Administration
Land Registry,Land Registry,20/01/2015,Waste Disposal,Leicester Office,Carillion Services Ltd,Large,1045653,230.12,Waste Disposal,Administration
Land Registry,Land Registry,20/01/2015,Waste Disposal,Nottingham Office,Carillion Services Ltd,Large,1045653,62.25,Waste Disposal,Administration
Land Registry,Land Registry,20/01/2015,Waste Disposal,Telford Office,Carillion Services Ltd,Large,1045653,372.46,Waste Disposal,Administration
Land Registry,Land Registry,20/01/2015,Waste Disposal,Weymouth Office,Carillion Services Ltd,Large,1045653,110.06,Waste Disposal,Administration
Land Registry,Land Registry,20/01/2015,Waste Disposal,Governance & Policy,Carillion Services Ltd,Large,1045653,808.49,Waste Disposal,Administration
Land Registry,Land Registry,20/01/2015,Waste Disposal,Gloucester Computer Centre,Carillion Services Ltd,Large,1045653,110.06,Waste Disposal,Administration
Land Registry,Land Registry,20/01/2015,Water,Coventry Office,Carillion Services Ltd,Large,1045653,"2,070.17",Water,Administration
Land Registry,Land Registry,20/01/2015,Water,Croydon Office,Carillion Services Ltd,Large,1045653,"2,376.42",Water,Administration
Land Registry,Land Registry,20/01/2015,Water,Gloucester Office,Carillion Services Ltd,Large,1045653,"1,020.90",Water,Administration
Land Registry,Land Registry,20/01/2015,Water,Nottingham Office,Carillion Services Ltd,Large,1045653,"1,017.23",Water,Administration
Land Registry,Land Registry,20/01/2015,Water,Telford Office,Carillion Services Ltd,Large,1045653,"4,929.07",Water,Administration
Land Registry,Land Registry,20/01/2015,Water,Wales Office,Carillion Services Ltd,Large,1045653,"6,046.10",Water,Administration
Land Registry,Land Registry,20/01/2015,Water,Governance & Policy,Carillion Services Ltd,Large,1045653,"1,288.78",Water,Administration
Land Registry,Land Registry,20/01/2015,Water,RFS5 - Durham Belmont,Carillion Services Ltd,Large,1045653,27.95,Water,Administration
Land Registry,Land Registry,20/01/2015,Water,Dir: HR,Carillion Services Ltd,Large,1045653,401.16,Water,Administration
Land Registry,Land Registry,06/01/2015,Computer Equipment Maintenance,IS Service Delivery,CGI IT UK Limited,Large,1043854,"69,500.00",Computer Equipment Maintenance,Administration
Land Registry,Land Registry,30/01/2015,Computer Equipment Maintenance,IS Service Delivery,CGI IT UK Limited,Large,1047048,"136,454.00",Computer Equipment Maintenance,Administration
Land Registry,Land Registry,02/01/2015,Computer Equipment Hire,IS Service Delivery,CHG-MERIDIAN UK Limited,Large,1044831,"45,820.83",Computer Equipment Hire,Administration
Land Registry,Land Registry,02/01/2015,Computer Equipment Hire,IS Service Delivery,CHG-MERIDIAN UK Limited,Large,1044831,"9,164.17",Computer Equipment Hire,Administration
Land Registry,Land Registry,27/01/2015,Rates Payable,Governance & Policy,City of Plymouth,Large,1046470,"30,865.04",Rates Payable,Administration
Land Registry,Land Registry,27/01/2015,Rates Payable,Dir: HR,City of York Council,Large,1046471,"15,213.00",Rates Payable,Administration
Land Registry,Land Registry,21/01/2015,Fixed Asset Interface Account,Balance Sheet,Computacenter (UK) Ltd,Large,1045882,"833,000.00",Computer Equipment,Administration
Land Registry,Land Registry,21/01/2015,Fixed Asset Interface Account,Balance Sheet,Computacenter (UK) Ltd,Large,1045882,"166,600.00",Computer Equipment,Administration
Land Registry,Land Registry,23/01/2015,Computer Equipment Hire,IS Service Delivery,Computer Associates UK Limited,Large,1046165,"275,484.00",Computer Equipment Hire,Administration
Land Registry,Land Registry,23/01/2015,Computer Equipment Hire,IS Service Delivery,Computer Associates UK Limited,Large,1046165,"55,096.80",Computer Equipment Hire,Administration
Land Registry,Land Registry,23/01/2015,Rates Payable,Coventry Office,Coventry City Council,Large,1046167,"3,539.07",Rates Payable,Administration
Land Registry,Land Registry,02/01/2015,Rates Payable,Croydon Office,Croydon Council,Large,1043253,"28,614.00",Rates Payable,Administration
Land Registry,Land Registry,12/01/2015,Document Exchange (DX),Central Facilities Management Team,DX Network Services Ltd,Large,1044964,"13,865.65",Document Exchange (DX) Postage,Administration
Land Registry,Land Registry,12/01/2015,Letter Post,Prog: e-Enablement,DX Network Services Ltd,Large,1044964,"10,240.00",Letter Post,Administration
Land Registry,Land Registry,20/01/2015,"Property Management; Advice, Surveys & Inspections",Central Facilities Management Team,EC Harris LLP,Large,1045655,"26,276.67","Property Management; Advice, Surveys & Inspections",Administration
Land Registry,Land Registry,16/01/2015,Transport Fuel,Central Facilities Management Team,Enterprise Rent-A-Car (UK) Ltd,Large,1045254,"2,910.49",Transport Fuel,Administration
Land Registry,Land Registry,16/01/2015,Transport Fuel,Central Facilities Management Team,Enterprise Rent-A-Car (UK) Ltd,Large,1045254,582.10,Transport Fuel,Administration
Land Registry,Land Registry,16/01/2015,Transport Hire of Cars and Vans,Central Facilities Management Team,Enterprise Rent-A-Car (UK) Ltd,Large,1045254,"23,100.57",Transport Hire of Cars and Vans,Administration
Land Registry,Land Registry,05/01/2015,Independent Adjudicators's Office Costs,Finance Director,HM Courts & Tribunals Service,Large,1043727,"694,000.00",Independent Adjudicators's Office Costs,Administration
Land Registry,Land Registry,06/01/2015,Computer Equipment Maintenance,IS Service Delivery,IBM United Kingdom Ltd,Large,1043861,"49,258.58",Computer Equipment Maintenance,Administration
Land Registry,Land Registry,14/01/2015,Computer Equipment Maintenance,IS Service Delivery,IBM United Kingdom Ltd,Large,1044844,"107,611.48",Computer Equipment Maintenance,Administration
Land Registry,Land Registry,29/01/2015,Data Network Lines,IS Service Delivery,Interoute Vtesse Ltd,Large,1046870,"61,250.00",Data Network Lines,Administration
Land Registry,Land Registry,15/01/2015,Computer Equipment Maintenance,IS Service Delivery,Involve Visual Collaboration Ltd,Large,1045020,"159,223.42",Computer Equipment Maintenance,Administration
Land Registry,Land Registry,12/01/2015,Rates Payable,Hull Office,Kingston Upon Hull City Council,Large,1044465,"13,737.00",Rates Payable,Administration
Land Registry,Land Registry,21/01/2015,National Recruitment,HR,LA Fosse Associates Ltd,Large,1045885,"28,800.00",National Recruitment,Administration
Land Registry,Land Registry,23/01/2015,Consultancy Non-IT Advice Only,Finance Director,Moore Stephens LLP,Large,1046173,"69,738.00",Consultancy Non-IT Advice Only,Administration
Land Registry,Land Registry,02/01/2015,Travel & Subsistence General Duty,Durham Office,Redfern Travel Ltd,SME,1043304,339.68,Travel & Subsistence General Duty,Administration
Land Registry,Land Registry,02/01/2015,Travel & Subsistence General Duty,Gloucester Office,Redfern Travel Ltd,SME,1043304,804.37,Travel & Subsistence General Duty,Administration
Land Registry,Land Registry,02/01/2015,Travel & Subsistence General Duty,Hull Office,Redfern Travel Ltd,SME,1043304,19.75,Travel & Subsistence General Duty,Administration
Land Registry,Land Registry,02/01/2015,Travel & Subsistence General Duty,Leicester Office,Redfern Travel Ltd,SME,1043304,306.29,Travel & Subsistence General Duty,Administration
Land Registry,Land Registry,02/01/2015,Travel & Subsistence General Duty,Nottingham Office,Redfern Travel Ltd,SME,1043304,164.87,Travel & Subsistence General Duty,Administration
Land Registry,Land Registry,02/01/2015,Travel & Subsistence General Duty,Peterborough Office,Redfern Travel Ltd,SME,1043304,177.09,Travel & Subsistence General Duty,Administration
Land Registry,Land Registry,02/01/2015,Travel & Subsistence General Duty,Plymouth Office,Redfern Travel Ltd,SME,1043304,65.95,Travel & Subsistence General Duty,Administration
Land Registry,Land Registry,02/01/2015,Travel & Subsistence General Duty,Wales Office,Redfern Travel Ltd,SME,1043304,827.41,Travel & Subsistence General Duty,Administration
Land Registry,Land Registry,02/01/2015,Travel & Subsistence General Duty,Weymouth Office,Redfern Travel Ltd,SME,1043304,140.38,Travel & Subsistence General Duty,Administration
Land Registry,Land Registry,02/01/2015,Travel & Subsistence General Duty,Land Charges,Redfern Travel Ltd,SME,1043304,10.68,Travel & Subsistence General Duty,Administration
Land Registry,Land Registry,02/01/2015,Travel & Subsistence General Duty,Chief Executives Office,Redfern Travel Ltd,SME,1043304,987.27,Travel & Subsistence General Duty,Administration
Land Registry,Land Registry,02/01/2015,Travel & Subsistence General Duty,Strategy Team,Redfern Travel Ltd,SME,1043304,333.74,Travel & Subsistence General Duty,Administration
Land Registry,Land Registry,02/01/2015,Travel & Subsistence General Duty,HR,Redfern Travel Ltd,SME,1043304,"4,599.09",Travel & Subsistence General Duty,Administration
Land Registry,Land Registry,02/01/2015,Travel & Subsistence General Duty,Performance and Innovation,Redfern Travel Ltd,SME,1043304,85.28,Travel & Subsistence General Duty,Administration
Land Registry,Land Registry,02/01/2015,Travel & Subsistence General Duty,Employee & Management Support Manager,Redfern Travel Ltd,SME,1043304,299.96,Travel & Subsistence General Duty,Administration
Land Registry,Land Registry,02/01/2015,Travel & Subsistence General Duty,Finance Group,Redfern Travel Ltd,SME,1043304,204.97,Travel & Subsistence General Duty,Administration
Land Registry,Land Registry,02/01/2015,Travel & Subsistence General Duty,Corp Procurement,Redfern Travel Ltd,SME,1043304,71.98,Travel & Subsistence General Duty,Administration
Land Registry,Land Registry,02/01/2015,Travel & Subsistence General Duty,Internal Audit,Redfern Travel Ltd,SME,1043304,"1,647.67",Travel & Subsistence General Duty,Administration
Land Registry,Land Registry,02/01/2015,Travel & Subsistence General Duty,Business Planning Assurance and Risk Management,Redfern Travel Ltd,SME,1043304,10.59,Travel & Subsistence General Duty,Administration
Land Registry,Land Registry,02/01/2015,Travel & Subsistence General Duty,Director of Operations,Redfern Travel Ltd,SME,1043304,120.58,Travel & Subsistence General Duty,Administration
Land Registry,Land Registry,02/01/2015,Travel & Subsistence General Duty,Central Operations Group,Redfern Travel Ltd,SME,1043304,"2,961.53",Travel & Subsistence General Duty,Administration
Land Registry,Land Registry,02/01/2015,Travel & Subsistence General Duty,Technical Assurance Group,Redfern Travel Ltd,SME,1043304,60.68,Travel & Subsistence General Duty,Administration
Land Registry,Land Registry,02/01/2015,Travel & Subsistence General Duty,Survey & Mapping Services,Redfern Travel Ltd,SME,1043304,509.59,Travel & Subsistence General Duty,Administration
Land Registry,Land Registry,02/01/2015,Travel & Subsistence General Duty,National Lawyer Training,Redfern Travel Ltd,SME,1043304,-59.21,Travel & Subsistence General Duty,Administration
Land Registry,Land Registry,02/01/2015,Travel & Subsistence General Duty,Corporate Legal Services,Redfern Travel Ltd,SME,1043304,612.94,Travel & Subsistence General Duty,Administration
Land Registry,Land Registry,02/01/2015,Travel & Subsistence General Duty,Guarantee & Litigation,Redfern Travel Ltd,SME,1043304,198.66,Travel & Subsistence General Duty,Administration
Land Registry,Land Registry,02/01/2015,Travel & Subsistence General Duty,Local Lawyer Group,Redfern Travel Ltd,SME,1043304,"1,042.92",Travel & Subsistence General Duty,Administration
Land Registry,Land Registry,02/01/2015,Travel & Subsistence General Duty,Projects and Programme Centre,Redfern Travel Ltd,SME,1043304,-121.34,Travel & Subsistence General Duty,Administration
Land Registry,Land Registry,02/01/2015,Travel & Subsistence General Duty,Director of Information Systems,Redfern Travel Ltd,SME,1043304,479.11,Travel & Subsistence General Duty,Administration
Land Registry,Land Registry,02/01/2015,Travel & Subsistence General Duty,Internal Solutions Group,Redfern Travel Ltd,SME,1043304,"4,164.93",Travel & Subsistence General Duty,Administration
Land Registry,Land Registry,02/01/2015,Travel & Subsistence General Duty,Governance & Policy,Redfern Travel Ltd,SME,1043304,255.53,Travel & Subsistence General Duty,Administration
Land Registry,Land Registry,02/01/2015,Travel & Subsistence General Duty,Technology Group,Redfern Travel Ltd,SME,1043304,496.55,Travel & Subsistence General Duty,Administration
Land Registry,Land Registry,02/01/2015,Travel & Subsistence General Duty,IS Service Delivery,Redfern Travel Ltd,SME,1043304,"3,458.07",Travel & Subsistence General Duty,Administration
Land Registry,Land Registry,02/01/2015,Travel & Subsistence General Duty,Central Facilities Management Team,Redfern Travel Ltd,SME,1043304,"1,662.07",Travel & Subsistence General Duty,Administration
Land Registry,Land Registry,02/01/2015,Travel & Subsistence General Duty,Property Asset Management Group,Redfern Travel Ltd,SME,1043304,784.69,Travel & Subsistence General Duty,Administration
Land Registry,Land Registry,02/01/2015,Travel & Subsistence General Duty,Business Continuity,Redfern Travel Ltd,SME,1043304,77.01,Travel & Subsistence General Duty,Administration
Land Registry,Land Registry,02/01/2015,Travel & Subsistence General Duty,Dir: (Statutory) Commercial & Customer,Redfern Travel Ltd,SME,1043304,"4,585.98",Travel & Subsistence General Duty,Administration
Land Registry,Land Registry,02/01/2015,Travel & Subsistence General Duty,LR Connect Portfolio,Redfern Travel Ltd,SME,1043304,"1,069.42",Travel & Subsistence General Duty,Administration
Land Registry,Land Registry,02/01/2015,Travel & Subsistence General Duty,Prog: e-Enablement,Redfern Travel Ltd,SME,1043304,"1,517.26",Travel & Subsistence General Duty,Administration
Land Registry,Land Registry,02/01/2015,Travel & Subsistence General Duty,Prog: Digital by Default,Redfern Travel Ltd,SME,1043304,"1,651.22",Travel & Subsistence General Duty,Administration
Land Registry,Land Registry,02/01/2015,Travel & Subsistence General Duty,Commercial Director,Redfern Travel Ltd,SME,1043304,217.03,Travel & Subsistence General Duty,Administration
Land Registry,Land Registry,02/01/2015,Travel & Subsistence General Duty,Business Development,Redfern Travel Ltd,SME,1043304,832.58,Travel & Subsistence General Duty,Administration
Land Registry,Land Registry,02/01/2015,Travel & Subsistence General Duty,Commercial & Customer Strategy & Performance,Redfern Travel Ltd,SME,1043304,229.22,Travel & Subsistence General Duty,Administration
Land Registry,Land Registry,02/01/2015,Travel & Subsistence General Duty,Product Development & Management,Redfern Travel Ltd,SME,1043304,"1,351.57",Travel & Subsistence General Duty,Administration
Land Registry,Land Registry,02/01/2015,Travel & Subsistence General Duty,Marketing Services Team,Redfern Travel Ltd,SME,1043304,662.50,Travel & Subsistence General Duty,Administration
Land Registry,Land Registry,02/01/2015,Travel & Subsistence General Duty,International Unit,Redfern Travel Ltd,SME,1043304,511.66,Travel & Subsistence General Duty,Administration
Land Registry,Land Registry,02/01/2015,Travel & Subsistence General Duty,Customer Services,Redfern Travel Ltd,SME,1043304,359.57,Travel & Subsistence General Duty,Administration
Land Registry,Land Registry,21/01/2015,Travel & Subsistence General Duty,Gloucester Office,Redfern Travel Ltd,SME,1045891,125.44,Travel & Subsistence General Duty,Administration
Land Registry,Land Registry,21/01/2015,Travel & Subsistence General Duty,Leicester Office,Redfern Travel Ltd,SME,1045891,160.93,Travel & Subsistence General Duty,Administration
Land Registry,Land Registry,21/01/2015,Travel & Subsistence General Duty,Nottingham Office,Redfern Travel Ltd,SME,1045891,211.75,Travel & Subsistence General Duty,Administration
Land Registry,Land Registry,21/01/2015,Travel & Subsistence General Duty,Peterborough Office,Redfern Travel Ltd,SME,1045891,47.02,Travel & Subsistence General Duty,Administration
Land Registry,Land Registry,21/01/2015,Travel & Subsistence General Duty,Plymouth Office,Redfern Travel Ltd,SME,1045891,132.77,Travel & Subsistence General Duty,Administration
Land Registry,Land Registry,21/01/2015,Travel & Subsistence General Duty,Wales Office,Redfern Travel Ltd,SME,1045891,26.08,Travel & Subsistence General Duty,Administration
Land Registry,Land Registry,21/01/2015,Travel & Subsistence General Duty,Chief Executives Office,Redfern Travel Ltd,SME,1045891,"1,152.98",Travel & Subsistence General Duty,Administration
Land Registry,Land Registry,21/01/2015,Travel & Subsistence General Duty,LR Board & Board Chair,Redfern Travel Ltd,SME,1045891,121.41,Travel & Subsistence General Duty,Administration
Land Registry,Land Registry,21/01/2015,Travel & Subsistence General Duty,Strategy Team,Redfern Travel Ltd,SME,1045891,650.94,Travel & Subsistence General Duty,Administration
Land Registry,Land Registry,21/01/2015,Travel & Subsistence General Duty,HR,Redfern Travel Ltd,SME,1045891,"5,205.55",Travel & Subsistence General Duty,Administration
Land Registry,Land Registry,21/01/2015,Travel & Subsistence General Duty,Learning and Development,Redfern Travel Ltd,SME,1045891,427.65,Travel & Subsistence General Duty,Administration
Land Registry,Land Registry,21/01/2015,Travel & Subsistence General Duty,Employee & Management Support Manager,Redfern Travel Ltd,SME,1045891,165.81,Travel & Subsistence General Duty,Administration
Land Registry,Land Registry,21/01/2015,Travel & Subsistence General Duty,LR Sports Council,Redfern Travel Ltd,SME,1045891,154.51,Travel & Subsistence General Duty,Administration
Land Registry,Land Registry,21/01/2015,Travel & Subsistence General Duty,Finance Director,Redfern Travel Ltd,SME,1045891,77.28,Travel & Subsistence General Duty,Administration
Land Registry,Land Registry,21/01/2015,Travel & Subsistence General Duty,Finance Group,Redfern Travel Ltd,SME,1045891,-6.09,Travel & Subsistence General Duty,Administration
Land Registry,Land Registry,21/01/2015,Travel & Subsistence General Duty,Corp Procurement,Redfern Travel Ltd,SME,1045891,746.16,Travel & Subsistence General Duty,Administration
Land Registry,Land Registry,21/01/2015,Travel & Subsistence General Duty,Internal Audit,Redfern Travel Ltd,SME,1045891,"2,036.76",Travel & Subsistence General Duty,Administration
Land Registry,Land Registry,21/01/2015,Travel & Subsistence General Duty,Director of Operations,Redfern Travel Ltd,SME,1045891,73.22,Travel & Subsistence General Duty,Administration
Land Registry,Land Registry,21/01/2015,Travel & Subsistence General Duty,Central Operations Group,Redfern Travel Ltd,SME,1045891,"2,995.20",Travel & Subsistence General Duty,Administration
Land Registry,Land Registry,21/01/2015,Travel & Subsistence General Duty,Forward Scanning,Redfern Travel Ltd,SME,1045891,290.11,Travel & Subsistence General Duty,Administration
Land Registry,Land Registry,21/01/2015,Travel & Subsistence General Duty,Director of Legal Services,Redfern Travel Ltd,SME,1045891,445.30,Travel & Subsistence General Duty,Administration
Land Registry,Land Registry,21/01/2015,Travel & Subsistence General Duty,Registration Legal Services Group,Redfern Travel Ltd,SME,1045891,1.40,Travel & Subsistence General Duty,Administration
Land Registry,Land Registry,21/01/2015,Travel & Subsistence General Duty,Survey & Mapping Services,Redfern Travel Ltd,SME,1045891,550.03,Travel & Subsistence General Duty,Administration
Land Registry,Land Registry,21/01/2015,Travel & Subsistence General Duty,Corporate Legal Services,Redfern Travel Ltd,SME,1045891,583.68,Travel & Subsistence General Duty,Administration
Land Registry,Land Registry,21/01/2015,Travel & Subsistence General Duty,Guarantee & Litigation,Redfern Travel Ltd,SME,1045891,183.16,Travel & Subsistence General Duty,Administration
Land Registry,Land Registry,21/01/2015,Travel & Subsistence General Duty,Research & Data Mining,Redfern Travel Ltd,SME,1045891,252.88,Travel & Subsistence General Duty,Administration
Land Registry,Land Registry,21/01/2015,Travel & Subsistence General Duty,Local Lawyer Group,Redfern Travel Ltd,SME,1045891,466.08,Travel & Subsistence General Duty,Administration
Land Registry,Land Registry,21/01/2015,Travel & Subsistence General Duty,Director of Information Systems,Redfern Travel Ltd,SME,1045891,691.95,Travel & Subsistence General Duty,Administration
Land Registry,Land Registry,21/01/2015,Travel & Subsistence General Duty,Internal Solutions Group,Redfern Travel Ltd,SME,1045891,"5,210.18",Travel & Subsistence General Duty,Administration
Land Registry,Land Registry,21/01/2015,Travel & Subsistence General Duty,Governance & Policy,Redfern Travel Ltd,SME,1045891,244.84,Travel & Subsistence General Duty,Administration
Land Registry,Land Registry,21/01/2015,Travel & Subsistence General Duty,Technology Group,Redfern Travel Ltd,SME,1045891,604.31,Travel & Subsistence General Duty,Administration
Land Registry,Land Registry,21/01/2015,Travel & Subsistence General Duty,IS Service Delivery,Redfern Travel Ltd,SME,1045891,812.94,Travel & Subsistence General Duty,Administration
Land Registry,Land Registry,21/01/2015,Travel & Subsistence General Duty,Central Facilities Management Team,Redfern Travel Ltd,SME,1045891,"1,325.85",Travel & Subsistence General Duty,Administration
Land Registry,Land Registry,21/01/2015,Travel & Subsistence General Duty,Property Asset Management Group,Redfern Travel Ltd,SME,1045891,554.30,Travel & Subsistence General Duty,Administration
Land Registry,Land Registry,21/01/2015,Travel & Subsistence General Duty,Business Continuity,Redfern Travel Ltd,SME,1045891,-56.03,Travel & Subsistence General Duty,Administration
Land Registry,Land Registry,21/01/2015,Travel & Subsistence General Duty,Dir: (Statutory) Commercial & Customer,Redfern Travel Ltd,SME,1045891,"2,454.41",Travel & Subsistence General Duty,Administration
Land Registry,Land Registry,21/01/2015,Travel & Subsistence General Duty,LR Connect Portfolio,Redfern Travel Ltd,SME,1045891,"1,992.05",Travel & Subsistence General Duty,Administration
Land Registry,Land Registry,21/01/2015,Travel & Subsistence General Duty,Prog: IT Foundations,Redfern Travel Ltd,SME,1045891,187.87,Travel & Subsistence General Duty,Administration
Land Registry,Land Registry,21/01/2015,Travel & Subsistence General Duty,Prog: e-Enablement,Redfern Travel Ltd,SME,1045891,"1,565.67",Travel & Subsistence General Duty,Administration
Land Registry,Land Registry,21/01/2015,Travel & Subsistence General Duty,Prog: Digital by Default,Redfern Travel Ltd,SME,1045891,"7,143.69",Travel & Subsistence General Duty,Administration
Land Registry,Land Registry,21/01/2015,Travel & Subsistence General Duty,Commercial Director,Redfern Travel Ltd,SME,1045891,194.43,Travel & Subsistence General Duty,Administration
Land Registry,Land Registry,21/01/2015,Travel & Subsistence General Duty,Business Development,Redfern Travel Ltd,SME,1045891,962.09,Travel & Subsistence General Duty,Administration
Land Registry,Land Registry,21/01/2015,Travel & Subsistence General Duty,Commercial & Customer Strategy & Performance,Redfern Travel Ltd,SME,1045891,978.22,Travel & Subsistence General Duty,Administration
Land Registry,Land Registry,21/01/2015,Travel & Subsistence General Duty,Product Development & Management,Redfern Travel Ltd,SME,1045891,408.47,Travel & Subsistence General Duty,Administration
Land Registry,Land Registry,21/01/2015,Travel & Subsistence General Duty,Marketing Services Team,Redfern Travel Ltd,SME,1045891,220.08,Travel & Subsistence General Duty,Administration
Land Registry,Land Registry,21/01/2015,Travel & Subsistence General Duty,International Unit,Redfern Travel Ltd,SME,1045891,"3,408.36",Travel & Subsistence General Duty,Administration
Land Registry,Land Registry,21/01/2015,Travel & Subsistence General Duty,Customer Services,Redfern Travel Ltd,SME,1045891,55.99,Travel & Subsistence General Duty,Administration
Land Registry,Land Registry,30/01/2015,Travel & Subsistence General Duty,Birkenhead Office,Redfern Travel Ltd,SME,1047052,446.53,Travel & Subsistence General Duty,Administration
Land Registry,Land Registry,30/01/2015,Travel & Subsistence General Duty,Croydon Office,Redfern Travel Ltd,SME,1047052,31.73,Travel & Subsistence General Duty,Administration
Land Registry,Land Registry,30/01/2015,Travel & Subsistence General Duty,Durham Office,Redfern Travel Ltd,SME,1047052,420.17,Travel & Subsistence General Duty,Administration
Land Registry,Land Registry,30/01/2015,Travel & Subsistence General Duty,Hull Office,Redfern Travel Ltd,SME,1047052,208.75,Travel & Subsistence General Duty,Administration
Land Registry,Land Registry,30/01/2015,Travel & Subsistence General Duty,Leicester Office,Redfern Travel Ltd,SME,1047052,160.93,Travel & Subsistence General Duty,Administration
Land Registry,Land Registry,30/01/2015,Travel & Subsistence General Duty,Nottingham Office,Redfern Travel Ltd,SME,1047052,413.96,Travel & Subsistence General Duty,Administration
Land Registry,Land Registry,30/01/2015,Travel & Subsistence General Duty,Peterborough Office,Redfern Travel Ltd,SME,1047052,422.56,Travel & Subsistence General Duty,Administration
Land Registry,Land Registry,30/01/2015,Travel & Subsistence General Duty,Telford Office,Redfern Travel Ltd,SME,1047052,141.20,Travel & Subsistence General Duty,Administration
Land Registry,Land Registry,30/01/2015,Travel & Subsistence General Duty,Wales Office,Redfern Travel Ltd,SME,1047052,178.50,Travel & Subsistence General Duty,Administration
Land Registry,Land Registry,30/01/2015,Travel & Subsistence General Duty,Chief Executives Office,Redfern Travel Ltd,SME,1047052,"1,082.52",Travel & Subsistence General Duty,Administration
Land Registry,Land Registry,30/01/2015,Travel & Subsistence General Duty,Strategy Team,Redfern Travel Ltd,SME,1047052,550.62,Travel & Subsistence General Duty,Administration
Land Registry,Land Registry,30/01/2015,Travel & Subsistence General Duty,HR,Redfern Travel Ltd,SME,1047052,"5,267.69",Travel & Subsistence General Duty,Administration
Land Registry,Land Registry,30/01/2015,Travel & Subsistence General Duty,Learning and Development,Redfern Travel Ltd,SME,1047052,211.54,Travel & Subsistence General Duty,Administration
Land Registry,Land Registry,30/01/2015,Travel & Subsistence General Duty,Performance and Innovation,Redfern Travel Ltd,SME,1047052,84.95,Travel & Subsistence General Duty,Administration
Land Registry,Land Registry,30/01/2015,Travel & Subsistence General Duty,Finance Director,Redfern Travel Ltd,SME,1047052,96.49,Travel & Subsistence General Duty,Administration
Land Registry,Land Registry,30/01/2015,Travel & Subsistence General Duty,Corp Procurement,Redfern Travel Ltd,SME,1047052,960.54,Travel & Subsistence General Duty,Administration
Land Registry,Land Registry,30/01/2015,Travel & Subsistence General Duty,Internal Audit,Redfern Travel Ltd,SME,1047052,33.72,Travel & Subsistence General Duty,Administration
Land Registry,Land Registry,30/01/2015,Travel & Subsistence General Duty,Business Planning Assurance and Risk Management,Redfern Travel Ltd,SME,1047052,52.17,Travel & Subsistence General Duty,Administration
Land Registry,Land Registry,30/01/2015,Travel & Subsistence General Duty,Director of Operations,Redfern Travel Ltd,SME,1047052,226.53,Travel & Subsistence General Duty,Administration
Land Registry,Land Registry,30/01/2015,Travel & Subsistence General Duty,Central Operations Group,Redfern Travel Ltd,SME,1047052,"1,688.56",Travel & Subsistence General Duty,Administration
Land Registry,Land Registry,30/01/2015,Travel & Subsistence General Duty,Director of Legal Services,Redfern Travel Ltd,SME,1047052,140.23,Travel & Subsistence General Duty,Administration
Land Registry,Land Registry,30/01/2015,Travel & Subsistence General Duty,Registration Legal Services Group,Redfern Travel Ltd,SME,1047052,604.71,Travel & Subsistence General Duty,Administration
Land Registry,Land Registry,30/01/2015,Travel & Subsistence General Duty,Technical Assurance Group,Redfern Travel Ltd,SME,1047052,-45.60,Travel & Subsistence General Duty,Administration
Land Registry,Land Registry,30/01/2015,Travel & Subsistence General Duty,Survey & Mapping Services,Redfern Travel Ltd,SME,1047052,342.04,Travel & Subsistence General Duty,Administration
Land Registry,Land Registry,30/01/2015,Travel & Subsistence General Duty,Corporate Legal Services,Redfern Travel Ltd,SME,1047052,442.40,Travel & Subsistence General Duty,Administration
Land Registry,Land Registry,30/01/2015,Travel & Subsistence General Duty,Guarantee & Litigation,Redfern Travel Ltd,SME,1047052,519.02,Travel & Subsistence General Duty,Administration
Land Registry,Land Registry,30/01/2015,Travel & Subsistence General Duty,Research & Data Mining,Redfern Travel Ltd,SME,1047052,277.08,Travel & Subsistence General Duty,Administration
Land Registry,Land Registry,30/01/2015,Travel & Subsistence General Duty,Local Lawyer Group,Redfern Travel Ltd,SME,1047052,"1,047.85",Travel & Subsistence General Duty,Administration
Land Registry,Land Registry,30/01/2015,Travel & Subsistence General Duty,Projects and Programme Centre,Redfern Travel Ltd,SME,1047052,183.73,Travel & Subsistence General Duty,Administration
Land Registry,Land Registry,30/01/2015,Travel & Subsistence General Duty,Director of Information Systems,Redfern Travel Ltd,SME,1047052,288.25,Travel & Subsistence General Duty,Administration
Land Registry,Land Registry,30/01/2015,Travel & Subsistence General Duty,Internal Solutions Group,Redfern Travel Ltd,SME,1047052,"4,113.67",Travel & Subsistence General Duty,Administration
Land Registry,Land Registry,30/01/2015,Travel & Subsistence General Duty,Governance & Policy,Redfern Travel Ltd,SME,1047052,225.90,Travel & Subsistence General Duty,Administration
Land Registry,Land Registry,30/01/2015,Travel & Subsistence General Duty,Technology Group,Redfern Travel Ltd,SME,1047052,269.39,Travel & Subsistence General Duty,Administration
Land Registry,Land Registry,30/01/2015,Travel & Subsistence General Duty,IS Service Delivery,Redfern Travel Ltd,SME,1047052,"4,687.19",Travel & Subsistence General Duty,Administration
Land Registry,Land Registry,30/01/2015,Travel & Subsistence General Duty,Central Facilities Management Team,Redfern Travel Ltd,SME,1047052,"2,408.28",Travel & Subsistence General Duty,Administration
Land Registry,Land Registry,30/01/2015,Travel & Subsistence General Duty,Property Asset Management Group,Redfern Travel Ltd,SME,1047052,"1,064.63",Travel & Subsistence General Duty,Administration
Land Registry,Land Registry,30/01/2015,Travel & Subsistence General Duty,Business Continuity,Redfern Travel Ltd,SME,1047052,1.10,Travel & Subsistence General Duty,Administration
Land Registry,Land Registry,30/01/2015,Travel & Subsistence General Duty,Dir: (Add Value) Commercial & Customer,Redfern Travel Ltd,SME,1047052,765.66,Travel & Subsistence General Duty,Administration
Land Registry,Land Registry,30/01/2015,Travel & Subsistence General Duty,Dir: (Statutory) Commercial & Customer,Redfern Travel Ltd,SME,1047052,"2,576.56",Travel & Subsistence General Duty,Administration
Land Registry,Land Registry,30/01/2015,Travel & Subsistence General Duty,LR Connect Portfolio,Redfern Travel Ltd,SME,1047052,"2,172.34",Travel & Subsistence General Duty,Administration
Land Registry,Land Registry,30/01/2015,Travel & Subsistence General Duty,Prog: People&Organisation,Redfern Travel Ltd,SME,1047052,239.74,Travel & Subsistence General Duty,Administration
Land Registry,Land Registry,30/01/2015,Travel & Subsistence General Duty,Prog: e-Enablement,Redfern Travel Ltd,SME,1047052,"1,562.63",Travel & Subsistence General Duty,Administration
Land Registry,Land Registry,30/01/2015,Travel & Subsistence General Duty,Prog: Digital by Default,Redfern Travel Ltd,SME,1047052,"6,418.48",Travel & Subsistence General Duty,Administration
Land Registry,Land Registry,30/01/2015,Travel & Subsistence General Duty,Commercial Director,Redfern Travel Ltd,SME,1047052,194.46,Travel & Subsistence General Duty,Administration
Land Registry,Land Registry,30/01/2015,Travel & Subsistence General Duty,Business Development,Redfern Travel Ltd,SME,1047052,722.67,Travel & Subsistence General Duty,Administration
Land Registry,Land Registry,30/01/2015,Travel & Subsistence General Duty,Commercial & Customer Strategy & Performance,Redfern Travel Ltd,SME,1047052,"1,637.12",Travel & Subsistence General Duty,Administration
Land Registry,Land Registry,30/01/2015,Travel & Subsistence General Duty,Product Development & Management,Redfern Travel Ltd,SME,1047052,820.59,Travel & Subsistence General Duty,Administration
Land Registry,Land Registry,30/01/2015,Travel & Subsistence General Duty,Marketing Services Team,Redfern Travel Ltd,SME,1047052,470.25,Travel & Subsistence General Duty,Administration
Land Registry,Land Registry,30/01/2015,Travel & Subsistence General Duty,International Unit,Redfern Travel Ltd,SME,1047052,831.09,Travel & Subsistence General Duty,Administration
Land Registry,Land Registry,30/01/2015,Travel & Subsistence General Duty,Customer Services,Redfern Travel Ltd,SME,1047052,125.62,Travel & Subsistence General Duty,Administration
Land Registry,Land Registry,30/01/2015,Travel & Subsistence General Duty,Birkenhead Office,Redfern Travel Ltd,SME,1047052,73.83,Travel & Subsistence General Duty,Administration
Land Registry,Land Registry,30/01/2015,Travel & Subsistence General Duty,Durham Office,Redfern Travel Ltd,SME,1047052,357.67,Travel & Subsistence General Duty,Administration
Land Registry,Land Registry,30/01/2015,Travel & Subsistence General Duty,Gloucester Office,Redfern Travel Ltd,SME,1047052,165.42,Travel & Subsistence General Duty,Administration
Land Registry,Land Registry,30/01/2015,Travel & Subsistence General Duty,Hull Office,Redfern Travel Ltd,SME,1047052,423.06,Travel & Subsistence General Duty,Administration
Land Registry,Land Registry,30/01/2015,Travel & Subsistence General Duty,Fylde Office,Redfern Travel Ltd,SME,1047052,236.41,Travel & Subsistence General Duty,Administration
Land Registry,Land Registry,30/01/2015,Travel & Subsistence General Duty,Leicester Office,Redfern Travel Ltd,SME,1047052,160.93,Travel & Subsistence General Duty,Administration
Land Registry,Land Registry,30/01/2015,Travel & Subsistence General Duty,Nottingham Office,Redfern Travel Ltd,SME,1047052,175.09,Travel & Subsistence General Duty,Administration
Land Registry,Land Registry,30/01/2015,Travel & Subsistence General Duty,Telford Office,Redfern Travel Ltd,SME,1047052,86.66,Travel & Subsistence General Duty,Administration
Land Registry,Land Registry,30/01/2015,Travel & Subsistence General Duty,Wales Office,Redfern Travel Ltd,SME,1047052,100.64,Travel & Subsistence General Duty,Administration
Land Registry,Land Registry,30/01/2015,Travel & Subsistence General Duty,Chief Executives Office,Redfern Travel Ltd,SME,1047052,952.03,Travel & Subsistence General Duty,Administration
Land Registry,Land Registry,30/01/2015,Travel & Subsistence General Duty,LR Board & Board Chair,Redfern Travel Ltd,SME,1047052,332.73,Travel & Subsistence General Duty,Administration
Land Registry,Land Registry,30/01/2015,Travel & Subsistence General Duty,Strategy Team,Redfern Travel Ltd,SME,1047052,404.10,Travel & Subsistence General Duty,Administration
Land Registry,Land Registry,30/01/2015,Travel & Subsistence General Duty,HR,Redfern Travel Ltd,SME,1047052,"6,955.13",Travel & Subsistence General Duty,Administration
Land Registry,Land Registry,30/01/2015,Travel & Subsistence General Duty,LR Sports Council,Redfern Travel Ltd,SME,1047052,26.86,Travel & Subsistence General Duty,Administration
Land Registry,Land Registry,30/01/2015,Travel & Subsistence General Duty,Finance Director,Redfern Travel Ltd,SME,1047052,495.18,Travel & Subsistence General Duty,Administration
Land Registry,Land Registry,30/01/2015,Travel & Subsistence General Duty,Finance Group,Redfern Travel Ltd,SME,1047052,560.36,Travel & Subsistence General Duty,Administration
Land Registry,Land Registry,30/01/2015,Travel & Subsistence General Duty,Corp Procurement,Redfern Travel Ltd,SME,1047052,152.11,Travel & Subsistence General Duty,Administration
Land Registry,Land Registry,30/01/2015,Travel & Subsistence General Duty,Internal Audit,Redfern Travel Ltd,SME,1047052,686.09,Travel & Subsistence General Duty,Administration
Land Registry,Land Registry,30/01/2015,Travel & Subsistence General Duty,Business Planning Assurance and Risk Management,Redfern Travel Ltd,SME,1047052,319.60,Travel & Subsistence General Duty,Administration
Land Registry,Land Registry,30/01/2015,Travel & Subsistence General Duty,Director of Operations,Redfern Travel Ltd,SME,1047052,177.47,Travel & Subsistence General Duty,Administration
Land Registry,Land Registry,30/01/2015,Travel & Subsistence General Duty,Central Operations Group,Redfern Travel Ltd,SME,1047052,"3,698.65",Travel & Subsistence General Duty,Administration
Land Registry,Land Registry,30/01/2015,Travel & Subsistence General Duty,Central RFS,Redfern Travel Ltd,SME,1047052,86.91,Travel & Subsistence General Duty,Administration
Land Registry,Land Registry,30/01/2015,Travel & Subsistence General Duty,Forward Scanning,Redfern Travel Ltd,SME,1047052,161.04,Travel & Subsistence General Duty,Administration
Land Registry,Land Registry,30/01/2015,Travel & Subsistence General Duty,Director of Legal Services,Redfern Travel Ltd,SME,1047052,576.80,Travel & Subsistence General Duty,Administration
Land Registry,Land Registry,30/01/2015,Travel & Subsistence General Duty,Registration Legal Services Group,Redfern Travel Ltd,SME,1047052,69.05,Travel & Subsistence General Duty,Administration
Land Registry,Land Registry,30/01/2015,Travel & Subsistence General Duty,Technical Assurance Group,Redfern Travel Ltd,SME,1047052,29.98,Travel & Subsistence General Duty,Administration
Land Registry,Land Registry,30/01/2015,Travel & Subsistence General Duty,Survey & Mapping Services,Redfern Travel Ltd,SME,1047052,214.14,Travel & Subsistence General Duty,Administration
Land Registry,Land Registry,30/01/2015,Travel & Subsistence General Duty,Corporate Legal Services,Redfern Travel Ltd,SME,1047052,216.51,Travel & Subsistence General Duty,Administration
Land Registry,Land Registry,30/01/2015,Travel & Subsistence General Duty,Guarantee & Litigation,Redfern Travel Ltd,SME,1047052,193.61,Travel & Subsistence General Duty,Administration
Land Registry,Land Registry,30/01/2015,Travel & Subsistence General Duty,Research & Data Mining,Redfern Travel Ltd,SME,1047052,182.89,Travel & Subsistence General Duty,Administration
Land Registry,Land Registry,30/01/2015,Travel & Subsistence General Duty,Local Lawyer Group,Redfern Travel Ltd,SME,1047052,893.30,Travel & Subsistence General Duty,Administration
Land Registry,Land Registry,30/01/2015,Travel & Subsistence General Duty,Projects and Programme Centre,Redfern Travel Ltd,SME,1047052,150.18,Travel & Subsistence General Duty,Administration
Land Registry,Land Registry,30/01/2015,Travel & Subsistence General Duty,Director of Information Systems,Redfern Travel Ltd,SME,1047052,391.48,Travel & Subsistence General Duty,Administration
Land Registry,Land Registry,30/01/2015,Travel & Subsistence General Duty,Internal Solutions Group,Redfern Travel Ltd,SME,1047052,"3,359.26",Travel & Subsistence General Duty,Administration
Land Registry,Land Registry,30/01/2015,Travel & Subsistence General Duty,Governance & Policy,Redfern Travel Ltd,SME,1047052,71.82,Travel & Subsistence General Duty,Administration
Land Registry,Land Registry,30/01/2015,Travel & Subsistence General Duty,Technology Group,Redfern Travel Ltd,SME,1047052,691.30,Travel & Subsistence General Duty,Administration
Land Registry,Land Registry,30/01/2015,Travel & Subsistence General Duty,IS Service Delivery,Redfern Travel Ltd,SME,1047052,"2,699.63",Travel & Subsistence General Duty,Administration
Land Registry,Land Registry,30/01/2015,Travel & Subsistence General Duty,Central Facilities Management Team,Redfern Travel Ltd,SME,1047052,"1,704.01",Travel & Subsistence General Duty,Administration
Land Registry,Land Registry,30/01/2015,Travel & Subsistence General Duty,Property Asset Management Group,Redfern Travel Ltd,SME,1047052,907.17,Travel & Subsistence General Duty,Administration
Land Registry,Land Registry,30/01/2015,Travel & Subsistence General Duty,Business Continuity,Redfern Travel Ltd,SME,1047052,560.02,Travel & Subsistence General Duty,Administration
Land Registry,Land Registry,30/01/2015,Travel & Subsistence General Duty,Dir: (Statutory) Commercial & Customer,Redfern Travel Ltd,SME,1047052,"6,121.67",Travel & Subsistence General Duty,Administration
Land Registry,Land Registry,30/01/2015,Travel & Subsistence General Duty,LR Connect Portfolio,Redfern Travel Ltd,SME,1047052,"2,435.23",Travel & Subsistence General Duty,Administration
Land Registry,Land Registry,30/01/2015,Travel & Subsistence General Duty,Prog: IT Foundations,Redfern Travel Ltd,SME,1047052,88.41,Travel & Subsistence General Duty,Administration
Land Registry,Land Registry,30/01/2015,Travel & Subsistence General Duty,Prog: People&Organisation,Redfern Travel Ltd,SME,1047052,260.31,Travel & Subsistence General Duty,Administration
Land Registry,Land Registry,30/01/2015,Travel & Subsistence General Duty,Prog: e-Enablement,Redfern Travel Ltd,SME,1047052,"2,007.77",Travel & Subsistence General Duty,Administration
Land Registry,Land Registry,30/01/2015,Travel & Subsistence General Duty,Prog: Digital by Default,Redfern Travel Ltd,SME,1047052,"6,889.83",Travel & Subsistence General Duty,Administration
Land Registry,Land Registry,30/01/2015,Travel & Subsistence General Duty,Commercial Director,Redfern Travel Ltd,SME,1047052,134.55,Travel & Subsistence General Duty,Administration
Land Registry,Land Registry,30/01/2015,Travel & Subsistence General Duty,Business Development,Redfern Travel Ltd,SME,1047052,665.07,Travel & Subsistence General Duty,Administration
Land Registry,Land Registry,30/01/2015,Travel & Subsistence General Duty,Commercial & Customer Strategy & Performance,Redfern Travel Ltd,SME,1047052,426.75,Travel & Subsistence General Duty,Administration
Land Registry,Land Registry,30/01/2015,Travel & Subsistence General Duty,Product Development & Management,Redfern Travel Ltd,SME,1047052,395.34,Travel & Subsistence General Duty,Administration
Land Registry,Land Registry,30/01/2015,Travel & Subsistence General Duty,Marketing Services Team,Redfern Travel Ltd,SME,1047052,-20.08,Travel & Subsistence General Duty,Administration
Land Registry,Land Registry,30/01/2015,Travel & Subsistence General Duty,International Unit,Redfern Travel Ltd,SME,1047052,726.64,Travel & Subsistence General Duty,Administration
Land Registry,Land Registry,30/01/2015,Travel & Subsistence General Duty,Customer Services,Redfern Travel Ltd,SME,1047052,375.05,Travel & Subsistence General Duty,Administration
Land Registry,Land Registry,16/01/2015,Letter Post,Birkenhead Office,Royal Mail,Large,1045255,"2,089.13",Letter Post,Administration
Land Registry,Land Registry,16/01/2015,Letter Post,Coventry Office,Royal Mail,Large,1045255,"5,431.54",Letter Post,Administration
Land Registry,Land Registry,16/01/2015,Letter Post,Croydon Office,Royal Mail,Large,1045255,"4,004.17",Letter Post,Administration
Land Registry,Land Registry,16/01/2015,Letter Post,Durham Office,Royal Mail,Large,1045255,"5,445.50",Letter Post,Administration
Land Registry,Land Registry,16/01/2015,Letter Post,Gloucester Office,Royal Mail,Large,1045255,"1,924.96",Letter Post,Administration
Land Registry,Land Registry,16/01/2015,Letter Post,Hull Office,Royal Mail,Large,1045255,"1,996.87",Letter Post,Administration
Land Registry,Land Registry,16/01/2015,Letter Post,Fylde Office,Royal Mail,Large,1045255,"2,688.29",Letter Post,Administration
Land Registry,Land Registry,16/01/2015,Letter Post,Leicester Office,Royal Mail,Large,1045255,"1,767.72",Letter Post,Administration
Land Registry,Land Registry,16/01/2015,Letter Post,Nottingham Office,Royal Mail,Large,1045255,"2,911.10",Letter Post,Administration
Land Registry,Land Registry,16/01/2015,Letter Post,Peterborough Office,Royal Mail,Large,1045255,"1,669.77",Letter Post,Administration
Land Registry,Land Registry,16/01/2015,Letter Post,Plymouth Office,Royal Mail,Large,1045255,"2,589.75",Letter Post,Administration
Land Registry,Land Registry,16/01/2015,Letter Post,Telford Office,Royal Mail,Large,1045255,"1,843.76",Letter Post,Administration
Land Registry,Land Registry,16/01/2015,Letter Post,Wales Office,Royal Mail,Large,1045255,"9,386.02",Letter Post,Administration
Land Registry,Land Registry,16/01/2015,Letter Post,Weymouth Office,Royal Mail,Large,1045255,"1,853.28",Letter Post,Administration
Land Registry,Land Registry,16/01/2015,Letter Post,Land Charges,Royal Mail,Large,1045255,863.25,Letter Post,Administration
Land Registry,Land Registry,16/01/2015,Letter Post,IS Service Delivery,Royal Mail,Large,1045255,"11,662.66",Letter Post,Administration
Land Registry,Land Registry,19/01/2015,Major Property Maintenance Projects,Central Facilities Management Team,Sitec Building and Maintenance Ltd,SME,1045606,"133,060.87",Major Property Maintenance Projects,Administration
Land Registry,Land Registry,22/01/2015,Major Property Maintenance Projects,Central Facilities Management Team,Sitewatch Fire & Surveillance Ltd,Large,1046017,"37,589.01",Major Property Maintenance Projects,Administration
Land Registry,Land Registry,13/01/2015,Computer Equipment Maintenance,IS Service Delivery,Specialist Computer Centres Plc - SCC,Large,1044656,"24,318.79",Computer Equipment Maintenance,Administration
Land Registry,Land Registry,02/01/2015,DITI Enhancements,IS Service Delivery,Specialist Computer Centres Plc - SCC,Large,1043305,"39,023.64",IT Enhancements,Administration
Land Registry,Land Registry,02/01/2015,DITI Enhancements,IS Service Delivery,Specialist Computer Centres Plc - SCC,Large,1043305,"7,804.73",IT Enhancements,Administration
Land Registry,Land Registry,27/01/2015,Rates Payable,Gloucester Computer Centre,Tewkesbury Borough Council,Large,1046481,"9,281.00",Rates Payable,Administration
Land Registry,Land Registry,22/01/2015,Maps & Plans Data Migration,Forward Scanning,TNT (UK) Ltd,Large,1046019,"76,780.42",Maps & Plans Data Migration,Administration
Land Registry,Land Registry,22/01/2015,Maps & Plans Data Migration,Forward Scanning,TNT (UK) Ltd,Large,1046019,"190,718.08",Maps & Plans Data Migration,Administration
Land Registry,Land Registry,02/01/2015,RFS Outsourced Services,Central RFS,TNT (UK) Ltd,Large,1043310,"102,820.08",File Store Outsourced Services,Administration
Land Registry,Land Registry,02/01/2015,RFS Outsourced Services,Central RFS,TNT (UK) Ltd,Large,1043310,"188,116.21",File Store Outsourced Services,Administration
Land Registry,Land Registry,28/01/2015,RFS Outsourced Services,Central RFS,TNT (UK) Ltd,Large,1046734,"79,828.16",File Store Outsourced Services,Administration
Land Registry,Land Registry,28/01/2015,RFS Outsourced Services,Central RFS,TNT (UK) Ltd,Large,1046734,"188,116.21",File Store Outsourced Services,Administration
Land Registry,Land Registry,13/01/2015,Data Network Lines,IS Service Delivery,Vodafone Corporate Ltd,Large,1044660,"64,144.48",Data Network Lines,Administration
Land Registry,Land Registry,05/01/2015,Rates Payable,Weymouth Office,West Dorset District Council,Large,1043732,"18,919.00",Rates Payable,Administration
Land Registry,Land Registry,02/01/2015,Rates Payable,Birkenhead Office,Wirral Metrpolitan Borough Council,Large,1043311,"22,925.00",Rates Payable,Administration
Land Registry,Land Registry,02/01/2015,Rates Payable,Birkenhead Office,Wirral Metrpolitan Borough Council,Large,1043311,"3,446.00",Rates Payable,Administration
